{"text_format":"1","workbook":"xlsx","n_sheets":8,"sheets":["Type marques","Historiq","Circuits","HistoriqCircuits","Familles Plus","Familles Moins","Familles HD","Régions"],"not_rendered":{"charts":4,"images":8,"macros":1,"external_links":2,"defined_names":6,"comments":0,"pivot_tables":0},"unopened":[],"bounds":{"document_bytes":16777216,"sheet_cells":100000,"rows_first":2000,"rows_last":500,"rows_between":2000,"halvings":0,"cell_chars":16384,"cell_head_chars":4096},"cells_cut":0,"cells_raw":0,"read":"whole","date_system":"1900"}

{"sheet":"Type marques","index":0,"n_rows":23,"n_cols":21,"rows_kept":23,"cut":false,"hidden":false,"merged":[[10,1,10,3]]}
["Observatoire des prix et des marges"]
[]
["Produits de grande consommation – Grande distribution",null,null,null,null,null,null,null,null,null,null,null,null,null,null,null,null,"EXHAUSTIF","MDD","PPX","MFAB"]
[null,null,null,null,null,null,null,null,null,null,null,null,null,null,null,null,"Total EPICERIE",-2.38,-0.14000000000000001,1.4,-3.37]
[null,null,null,null,null,null,null,null,null,null,null,null,null,null,null,null,"Total LIQUIDES",-1.46,1.89,0.59,-2.73]
[null,null,null,null,null,null,null,null,null,null,null,null,null,null,null,null,"Total D.P.H.",-2.84,-0.88,-0.21,-3.43]
[null,null,null,null,null,null,null,null,null,null,null,null,null,null,null,null,"Total Produits Frais",-1.25,0.15,0.45,-2.33]
[null,null,null,null,null,null,null,null,null,null,null,null,null,null,null,null,"Total Non Alimentaire",-1.61,-0.74,-1.22,-2.2400000000000002]
[null,null,null,null,null,null,null,null,null,null,null,null,null,null,null,null,"Total P.G.C.",-2.39,-0.04,0.93,-3.3]
[null,null,null,null,null,null,null,null,null,null,null,null,null,null,null,null,"Total Alimentaire",-2.12,0.02,0.79,-3.11]
[null,null,null,null,null,"EXHAUSTIF",null,"MARQUES FABRICANTS",null,"MDD",null,"PPX",null,null,null,null,"Total GENERAL",-2.1,0,0.69,-3.09]
[null," ---EPICERIE",null,null,null,{"$f":"+R4","v":-2.38},null,{"$f":"+U4","v":-3.37},null,{"$f":"+S4","v":-0.14000000000000001},null,{"$f":"+T4","v":1.4}]
[null," ---LIQUIDES",null,null,null,{"$f":"+R5","v":-1.46},null,{"$f":"+U5","v":-2.73},null,{"$f":"+S5","v":1.89},null,{"$f":"+T5","v":0.59}]
[null," ---D.P.H.",null,null,null,{"$f":"+R6","v":-2.84},null,{"$f":"+U6","v":-3.43},null,{"$f":"+S6","v":-0.88},null,{"$f":"+T6","v":-0.21}]
[null," --P.G.C.",null,null,null,{"$f":"+R9","v":-2.39},null,{"$f":"+U9","v":-3.3},null,{"$f":"+S9","v":-0.04},null,{"$f":"+T9","v":0.93}]
[null," --PRODUITS FRAIS L.S.",null,null,null,{"$f":"+R7","v":-1.25},null,{"$f":"+U7","v":-2.33},null,{"$f":"+S7","v":0.15},null,{"$f":"+T7","v":0.45}]
[null," -ALIMENTAIRE (PGC+FLS)",null,null,null,{"$f":"+R10","v":-2.12},null,{"$f":"+U10","v":-3.11},null,{"$f":"+S10","v":0.02},null,{"$f":"+T10","v":0.79}]
[null," -NON ALIMENTAIRE",null,null,null,{"$f":"+R8","v":-1.61},null,{"$f":"+U8","v":-2.2400000000000002},null,{"$f":"+S8","v":-0.74},null,{"$f":"+T8","v":-1.22}]
[null," TOTAL GENERAL",null,null,null,{"$f":"+R11","v":-2.1},null,{"$f":"+U11","v":-3.09},null,{"$f":"+S11","v":0},null,{"$f":"+T11","v":0.69}]
[]
[null,"Leaders : 7 000 produits détenus par + 40 % des magasins en France."]
[null,"Plus Grandes Marques = \"Majeurs\": les références des marques majeures par catégories de produits (environ 1500 produits)"]
[null,"Exhaustifs : totalité de produits suivis"]

{"sheet":"Historiq","index":1,"n_rows":188,"n_cols":23,"rows_kept":188,"cut":false,"hidden":false,"merged":[]}
["Observatoire des prix et des marges",null,null,null,null,null,null,null,null,null,null,null,null,null,null,null,"Evolution de l'inflation (inflation annuelle 2003/2002, 2004/2003 etc.)"]
[null,null,null,null,null,null,null,null,null,null,null,null,null,null,null,null,"Total circuits - par type de marques, et du Hard-Discount (en exhaustif)"]
["Produits de grande consommation – Grande distribution"]
[null,null,null,null,null,null,null,null,null,null,null,null,null,null,null,null,"TOTAL GENERAL                            "]
[null,null,null,null,null,null,null,null,null,null,null,null,null,null,null,null,null,"Exhaustifs","MdD","Premiers Prix","Mar. Fabricants","Hard-Discounters","MP HD"]
[null,null,null,null,null,null,null,null,null,null,null,null,null,null,null,null,"2003-01-01",2.23,0.45,1.02,null,-0.05,{"$f":"+V6","v":-0.05}]
[null,null,null,null,null,null,null,null,null,null,null,null,null,null,null,null,"février",2.52,0.48,1.02,null,0.05,0.05]
[null,null,null,null,null,null,null,null,null,null,null,null,null,null,null,null,"mars",2.82,0.67,1.18,null,-0.16,-0.16]
[null,null,null,null,null,null,null,null,null,null,null,null,null,null,null,null,"avril",3.06,0.59,1.46,null,-0.15,-0.15]
[null,null,null,null,null,null,null,null,null,null,null,null,null,null,null,null,"mai",3.02,0.67,1.1499999999999999,null,-0.26,-0.26]
[null,null,null,null,null,null,null,null,null,null,null,null,null,null,null,null,"juin",2.9,0.98,0.99,null,-0.63,-0.63]
[null,null,null,null,null,null,null,null,null,null,null,null,null,null,null,null,"sept.",2.12,0.51,0.39,null,-0.73,-0.73]
[null,null,null,null,null,null,null,null,null,null,null,null,null,null,null,null,"octobre",1.98,0.45,-1.2,null,-0.48,-0.48]
[null,null,null,null,null,null,null,null,null,null,null,null,null,null,null,null,"nov.",1.92,0.36,-0.6,null,-1.02,-1.02]
[null,null,null,null,null,null,null,null,null,null,null,null,null,null,null,null,"déc*",1.9,0.215,-0.85,null,-1.0900000000000001,-1.0900000000000001]
[null,null,null,null,null,null,null,null,null,null,null,null,null,null,null,null,"2004-01-01",1.88,7.0000000000000007E-2,-1.1000000000000001,null,-1.1599999999999999,-1.1599999999999999]
[null,null,null,null,null,null,null,null,null,null,null,null,null,null,null,null,"février",1.78,0.01,-1.43,null,-0.84,-0.84]
[null,null,null,null,null,null,null,null,null,null,null,null,null,null,null,null,"mars",1.63,-0.27,-1.71,null,-0.75,-0.75]
[null,null,null,null,null,null,null,null,null,null,null,null,null,null,null,null,"avril",1.37,-0.46,-2.61,null,-0.95,-0.95]
[null,null,null,null,null,null,null,null,null,null,null,null,null,null,null,null,"mai",1.26,-0.56999999999999995,-2.72,null,-1.03,-1.03]
[null,null,null,null,null,null,null,null,null,null,null,null,null,null,null,null,"juin",1.0900000000000001,-0.74,-3.3,null,-1.1200000000000001,-1.1200000000000001]
[null,null,null,null,null,null,null,null,null,null,null,null,null,null,null,null,"juill**",0.92,-0.9,-3.53,null,-1.1200000000000001,-1.1200000000000001]
[null,null,null,null,null,null,null,null,null,null,null,null,null,null,null,null,"août**",0.57999999999999996,-1.06,-3.76,null,-1.1100000000000001,-1.1100000000000001]
[null,null,null,null,null,null,null,null,null,null,null,null,null,null,null,null,"sept.",-0.05,-1.29,-4.03,null,-1.1100000000000001,-1.1100000000000001]
[null,null,null,null,null,null,null,null,null,null,null,null,null,null,null,null,"oct",-0.38,-1.66,-4.16,null,-1.1499999999999999,-1.1499999999999999]
[null,null,null,null,null,null,null,null,null,null,null,null,null,null,null,null,"nov",-0.6,-1.82,-4.09,null,-1.42,-1.42]
[null,null,null,null,null,null,null,null,null,null,null,null,null,null,null,null,"déc*",-0.81,-2.0299999999999998,-4.1100000000000003,null,-1.53,-1.53]
[null,null,null,null,null,null,null,null,null,null,null,null,null,null,null,null,"2005-01-01",-1.01,-2.2599999999999998,-4.1100000000000003,null,-1.63,-1.63]
[null,null,null,null,null,null,null,null,null,null,null,null,null,null,null,null,"février",-1.17,-2.08,-4.09,null,-1.34,-1.34]
[null,null,null,null,null,null,null,null,null,null,null,null,null,null,null,null,"mars",-1.33,-2.12,-3.86,null,-2.12,-2.12]
[null,null,null,null,null,null,null,null,null,null,null,null,null,null,null,null,"avril",-1.34,-2.2200000000000002,-3.28,null,-1.6,-1.6]
[null,null,null,null,null,null,null,null,null,null,null,null,null,null,null,null,"mai",-1.47,-2.4900000000000002,-3.1,null,-1.58,-1.58]
[null,null,null,null,null,null,null,null,null,null,null,null,null,null,null,null,"juin",-1.52,-2.67,-2.91,null,-1.53,-1.53]
[null,null,null,null,null,null,null,null,null,null,null,null,null,null,null,null,"juillet**",-1,-2.7,-2.4,null,-1.5,-1.5]
[null,null,null,null,null,null,null,null,null,null,null,null,null,null,null,null,"août**",-1,-2.7,-2.4,null,-1.5,-1.5]
[null,null,null,null,null,null,null,null,null,null,null,null,null,null,null,null,"sept.",-0.54,-2.67,-1.83,null,-1.52,-1.52]
[null,null,null,null,null,null,null,null,null,null,null,null,null,null,null,null,"oct.",-0.15,-2.0099999999999998,-1.88,null,-1.41,-1.41]
[null,null,null,null,null,null,null,null,null,null,null,null,null,null,null,null,"nov.",-0.21,-2.4700000000000002,-1.8,null,-1.1200000000000001,{"$f":"+V38","v":-1.1200000000000001}]
[null,null,null,null,null,null,null,null,null,null,null,null,null,null,null,null,"déc.*",-4.9999999999999906E-3,-2.4049999999999998,-1.42,null,-0.93,-0.93]
[null,null,null,null,null,null,null,null,null,null,null,null,null,null,null,null,"2006-01-01",0.2,-2.34,-1.04,null,-0.74,-0.74]
[null,null,null,null,null,null,null,null,null,null,null,null,null,null,null,null,"2006-02-01",0.24,-2.2000000000000002,-0.88,null,-0.4,-0.4]
[null,null,null,null,null,null,null,null,null,null,null,null,null,null,null,null,"2006-03-01",0.41,-1.81,-0.65,null,-0.05,-0.05]
[null,null,null,null,null,null,null,null,null,null,null,null,null,null,null,null,"2006-04-01",0.39,-1.49,-0.34,null,-0.16,-0.16]
[null,null,null,null,null,null,null,null,null,null,null,null,null,null,null,null,"2006-05-01",0.41,-1.1499999999999999,-0.14000000000000001,null,-0.32,-0.32]
[null,null,null,null,null,null,null,null,null,null,null,null,null,null,null,null,"2006-06-01",0.2,-0.85,0.05,null,-0.68,-0.68]
[null,null,null,null,null,null,null,null,null,null,null,null,null,null,null,null,"2006-07-01",0.33750000000000002,-0.375,0.34250000000000003,null,-0.39,-0.39]
[null,null,null,null,null,null,null,null,null,null,null,null,null,null,null,null,"2006-08-01",0.37,0.25,0.73,null,-0.28000000000000003,-0.28000000000000003]
[null,null,null,null,null,null,null,null,null,null,null,null,null,null,null,null,"2006-09-01",0.09,-0.21,0.1,null,-0.31,-0.31]
[null,null,null,null,null,null,null,null,null,null,null,null,null,null,null,null,"2006-10-01",0.15,0.2,0.56999999999999995,null,0.05,0.05]
[null,null,null,null,null,null,null,null,null,null,null,null,null,null,null,null,"2006-11-01",7.0000000000000007E-2,0.36,0.53,null,0.52,0.52]
[null,null,null,null,null,null,null,null,null,null,null,null,null,null,null,null,"déc.*-06",-4.4999999999999998E-2,0.46500000000000002,0.78,null,0.4,0.4]
[null,null,null,null,null,null,null,null,null,null,null,null,null,null,null,null,"2007-01-01",-0.16,0.56999999999999995,1.03,null,0.28000000000000003,0.28000000000000003]
[null,null,null,null,null,null,null,null,null,null,null,null,null,null,null,null,"fev-07",-0.44,0.44,0.95,null,0.43,0.43]
[null,null,null,null,null,null,null,null,null,null,null,null,null,null,null,null,"2007-03-01",-0.1,1.22,1.28,null,0.5,0.5]
[null,null,null,null,null,null,null,null,null,null,null,null,null,null,null,null,"2007-04-01",-0.74,0.6,0.88,null,-0.15,-0.15]
[null,null,null,null,null,null,null,null,null,null,null,null,null,null,null,null,"2007-05-01",-0.74,0.91,1.03,null,-0.13,-0.13]
[null,null,null,null,null,null,null,null,null,null,null,null,null,null,null,null,"2007-06-01",-0.49,1.1100000000000001,1.1399999999999999,null,0.48,0.48]
[null,null,null,null,null,null,null,null,null,null,null,null,null,null,null,null,"2007-07-01",-0.37,1.39,1.43,null,0.68,0.68]
[null,null,null,null,null,null,null,null,null,null,null,null,null,null,null,null,"2007-08-01",-7.0000000000000007E-2,1.9,1.92,null,1.29,1.29]
[null,null,null,null,null,null,null,null,null,null,null,null,null,null,null,null,"2007-09-01",-0.09,1.81,2.2599999999999998,null,1.24,1.24]
[null,null,null,null,null,null,null,null,null,null,null,null,null,null,null,null,"2007-10-01",7.0000000000000007E-2,1.62,2.0099999999999998,null,1.3,1.3]
[null,null,null,null,null,null,null,null,null,null,null,null,null,null,null,null,"2007-11-01",0.43,1.98,2.54,null,0.35,0.35]
[null,null,null,null,null,null,null,null,null,null,null,null,null,null,null,null,"2007-12-01",1.42,2.63,3.43,null,2.0499999999999998,2.0499999999999998]
[null,null,null,null,null,null,null,null,null,null,null,null,null,null,null,null,"2008-01-01",2.39,3.1,3.63,null,3.76,3.76]
[null,null,null,null,null,null,null,null,null,null,null,null,null,null,null,null,"2008-02-01",3.3,3.77,4.55,null,4.07476288256575,4.07476288256575]
[null,null,null,null,null,null,null,null,null,null,null,null,null,null,null,null,"2008-03-01",3.55,3.81,4.8600000000000003,null,3.82,3.82]
[null,null,null,null,null,null,null,null,null,null,null,null,null,null,null,null,"2008-04-01",3.67,3.93,5.2,null,3.77,3.77]
[null,null,null,null,null,null,null,null,null,null,null,null,null,null,null,null,"2008-05-01",3.91,3.8,5.68,null,3.79,3.79]
[null,null,null,null,null,null,null,null,null,null,null,null,null,null,null,null,"2008-06-01",3.86,3.94,6.06,null,3.8,4.0999999999999996]
[null,null,null,null,null,null,null,null,null,null,null,null,null,null,null,null,"2008-07-01",4.04,4.2,6.19,null,4.96,5.2]
[null,null,null,null,null,null,null,null,null,null,null,null,null,null,null,null,"2008-08-01",4.03,4.17,6.48,null,4.3099999999999996,4.6100000000000003]
[null,null,null,null,null,null,null,null,null,null,null,null,null,null,null,null,"2008-09-01",4.12,4.32,6.68,null,3.48,4.72]
[null,null,null,null,null,null,null,null,null,null,null,null,null,null,null,null,"2008-10-01",4.04,4.12,6.54,null,4.05,5.13]
[null,null,null,null,null,null,null,null,null,null,null,null,null,null,null,null,"2008-11-01",3.98,4.08,6.48,null,3.39,4.97]
[null,null,null,null,null,null,null,null,null,null,null,null,null,null,null,null,"2008-12-01",3.06,3.64,6,null,2.21,3.19]
[null,null,null,null,null,null,null,null,null,null,null,null,null,null,null,null,"2009-01-01",2.0099999999999998,2.58,5.17,null,1.71,2.54]
[null,null,null,null,null,null,null,null,null,null,null,null,null,null,null,null,"2009-02-01",1.54,1.91,4.26,null,1.28,2.19]
[null,null,null,null,null,null,null,null,null,null,null,null,null,null,null,null,"2009-03-01",1.29,1.83,3.93,null,0.84,1.84]
[null,null,null,null,null,null,null,null,null,null,null,null,null,null,null,null,"2009-04-01",1.04,1.53,3.39,null,1.51,2.08]
[null,null,null,null,null,null,null,null,null,null,null,null,null,null,null,null,"2009-05-01",0.91,1.19,2.83,null,1.42,1.82]
[null,null,null,null,null,null,null,null,null,null,null,null,null,null,null,null,"2009-06-01",0.81,1.1100000000000001,2.74,null,0.76,1.3]
[null,null,null,null,null,null,null,null,null,null,null,null,null,null,null,null,"2009-07-01",0.56999999999999995,0.63,2.2599999999999998,null,0.79,1.33]
[null,null,null,null,null,null,null,null,null,null,null,null,null,null,null,null,"2009-08-01",0.52,0.36,1.88,null,0.61,0.93]
[null,null,null,null,null,null,null,null,null,null,null,null,null,null,null,null,"2009-09-01",0.65,0.19,1.55,null,0.31,0.54]
[null,null,null,null,null,null,null,null,null,null,null,null,null,null,null,null,"2009-10-01",0.39,-0.21,1.1200000000000001,null,0.38,0.46]
[null,null,null,null,null,null,null,null,null,null,null,null,null,null,null,null,"2009-11-01",0.22,-0.62,0.6,null,-0.03,0.02]
[null,null,null,null,null,null,null,null,null,null,null,null,null,null,null,null,"2009-12-01",0.06,-0.85,0.13,null,0.14000000000000001,7.0000000000000007E-2]
[null,null,null,null,null,null,null,null,null,null,null,null,null,null,null,null,"2010-01-01",0.11,-0.94,-0.24,null,-0.81,-0.85]
[null,null,null,null,null,null,null,null,null,null,null,null,null,null,null,null,"2010-02-01",0.17,-0.61,-0.14000000000000001,null,-1.33,-1.3836002556610663]
[null,null,null,null,null,null,null,null,null,null,null,null,null,null,null,null,"2010-03-01",0.28999999999999998,-0.56999999999999995,-0.35,null,-1.54,-1.65]
[null,null,null,null,null,null,null,null,null,null,null,null,null,null,null,null,"2010-04-01",0.18,-0.69,-0.85,null,-1.6,-1.73]
[null,null,null,null,null,null,null,null,null,null,null,null,null,null,null,null,"2010-05-01",0.31,-0.81,-1.06,null,-1.53,-1.74]
[null,null,null,null,null,null,null,null,null,null,null,null,null,null,null,null,"2010-06-01",-0.04,-1.0900000000000001,-1.36,null,-1.57,-1.83]
[null,null,null,null,null,null,null,null,null,null,null,null,null,null,null,null,"2010-07-01",-0.31,-1.44,-1.62,null,-1.94,-2.2000000000000002]
[null,null,null,null,null,null,null,null,null,null,null,null,null,null,null,null,"2010-08-01",-0.62,-1.53,-1.69,null,-1.94,-2.0299999999999998]
[null,null,null,null,null,null,null,null,null,null,null,null,null,null,null,null,"2010-09-01",-0.85,-1.68,-1.84,null,-2.0499999999999998,-2.0099999999999998]
[null,null,null,null,null,null,null,null,null,null,null,null,null,null,null,null,"2010-10-01",-1.01,-1.64,-1.8,null,-2,-2.29]
[null,null,null,null,null,null,null,null,null,null,null,null,null,null,null,null,"2010-11-01",-0.96,-1.59,-1.73,null,-1.1599999999999999,{"$f":"-1.21","v":-1.21}]
[null,null,null,null,null,null,null,null,null,null,null,null,null,null,null,null,"2010-12-01",-0.91,-1.6,-1.67,null,-0.14000000000000001,-0.10974829730530056]
[null,null,null,null,null,null,null,null,null,null,null,null,null,null,null,null,"2011-01-01",-0.94,-1.28,-1.94,null,1.1499999999999999,1.2370579447230818]
[null,null,null,null,null,null,null,null,null,null,null,null,null,null,null,null,"2011-02-01",-1.03,-1.27,-1.36,null,1.7,1.9049677531811047]
[null,null,null,null,null,null,null,null,null,null,null,null,null,null,null,null,"2011-03-01",-0.53,-0.8,-0.97,null,1.62,1.826003532050976]
[null,null,null,null,null,null,null,null,null,null,null,null,null,null,null,null,"2011-04-01",0.04,-0.14000000000000001,-0.09,null,2.0299999999999998,2.2956336102639603]
[null,null,null,null,null,null,null,null,null,null,null,null,null,null,null,null,"2011-05-01",0.61,0.86,0.86,null,3.28,3.479224742690358]
[null,null,null,null,null,null,null,null,null,null,null,null,null,null,null,null,"2011-06-01",1.45,2.35,1.46,null,3.9,4.0903514376996801]
[null,null,null,null,null,null,null,null,null,null,null,null,null,null,null,null,"2011-07-01",1.84,3.07,1.85,null,4.2175000000000002,4.4175000000000004]
[null,null,null,null,null,null,null,null,null,null,null,null,null,null,null,null,"2011-08-01",1.98,3.34,2.0299999999999998,null,4.0831249999999999,4.2831250000000001]
[null,null,null,null,null,null,null,null,null,null,null,null,null,null,null,null,"2011-09-01",2.13,3.81,2.4900000000000002,null,6.02,6.3104190283400809]
[null,null,null,null,null,null,null,null,null,null,null,null,null,null,null,null,"2011-10-01",2.34,4.1900000000000004,2.52,null,6.21,7.0628698919680604]
[null,null,null,null,null,null,null,null,null,null,null,null,null,null,null,null,"2011-11-01",2.57,4.57,2.72,null,6.39,7.4825940178415262]
[null,null,null,null,null,null,null,null,null,null,null,null,null,null,null,null,"2011-12-01",2.65,4.75,3.04,null,6.76,7.9029149291075909]
[null,null,null,null,null,null,null,null,null,null,null,null,null,null,null,null,"2012-01-01",2.7,4.88,3.21,null,6.31,7.9275543140906271]
[null,null,null,null,null,null,null,null,null,null,null,null,null,null,null,null,"2012-02-01",2.74,4.8099999999999996,3.24,null,5.71,6.9095183544303795]
[null,null,null,null,null,null,null,null,null,null,null,null,null,null,null,null,"2012-03-01",2.36,4.74,3.41,null,5.69,7.0644858919177427]
[null,null,null,null,null,null,null,null,null,null,null,null,null,null,null,null,"2012-04-01",1.77,4.1500000000000004,3.18,null,5.59,6.8255699332399251]
[null,null,null,null,null,null,null,null,null,null,null,null,null,null,null,null,"2012-05-01",1.53,3.67,2.88,null,5.6,6.8266279164961121]
[null,null,null,null,null,null,null,null,null,null,null,null,null,null,null,null,"2012-06-01",1.1100000000000001,2.69,2.72,null,3.79,4.483791434075977]
[null,null,null,null,null,null,null,null,null,null,null,null,null,null,null,null,"2012-07-01",0.84,2.15,2.5299999999999998,null,3.74,4.5787807951609851]
[null,null,null,null,null,null,null,null,null,null,null,null,null,null,null,null,"2012-08-01",0.84,1.94,2.58,null,2.95,3.7801697040764806]
[null,null,null,null,null,null,null,null,null,null,null,null,null,null,null,null,"2012-09-01",0.54,1.4,2.02,null,2.8,3.6653423629682358]
[null,null,null,null,null,null,null,null,null,null,null,null,null,null,null,null,"2012-10-01",0.47,1.1100000000000001,2.04,null,2.63,3.3606651663997926]
[null,null,null,null,null,null,null,null,null,null,null,null,null,null,null,null,"2012-11-01",0.23,0.56000000000000005,1.89,null,2,2.7715836361882098]
[null,null,null,null,null,null,null,null,null,null,null,null,null,null,null,null,"2012-12-01",0.11,0.02,1.71,null,1.5,2.1981995527668374]
[null,null,null,null,null,null,null,null,null,null,null,null,null,null,null,null,"2013-01-01",0.1,-0.19,1.79,null,1.5,2.1981995527668374]
[null,null,null,null,null,null,null,null,null,null,null,null,null,null,null,null,"2013-02-01",-0.11,-0.53,1.56,null,1.53,2.281079789775442]
[null,null,null,null,null,null,null,null,null,null,null,null,null,null,null,null,"2013-03-01",-0.11,-0.5,1.58,null,1.78,2.4819825419102113]
[null,null,null,null,null,null,null,null,null,null,null,null,null,null,null,null,"2013-04-01",-0.42,-0.54,1.45,null,1.99,2.8006904385021572]
[null,null,null,null,null,null,null,null,null,null,null,null,null,null,null,null,"2013-05-01",-0.53,-0.62,1.1000000000000001,null,2.33,3.0504787032654992]
[null,null,null,null,null,null,null,null,null,null,null,null,null,null,null,null,"2013-06-01",-0.56999999999999995,-0.61,1.35,null,2.29,3.0949206349206353]
[null,null,null,null,null,null,null,null,null,null,null,null,null,null,null,null,"2013-07-01",-0.72,-0.6,1.51,null,2.37,3.4430640297202801]
[null,null,null,null,null,null,null,null,null,null,null,null,null,null,null,null,"2013-08-01",-0.77,-0.6,1.58,null,2.6,3.281106236146341]
[null,null,null,null,null,null,null,null,null,null,null,null,null,null,null,null,"2013-09-01",-0.88,-0.63,1.8,null,2.34,3.2462526507119049]
[null,null,null,null,null,null,null,null,null,null,null,null,null,null,null,null,"2013-10-01",-1.04,-0.61,1.85,null,2.59,3.4240572835175342]
[null,null,null,null,null,null,null,null,null,null,null,null,null,null,null,null,"2013-11-01",-1.08,-0.41,1.92,null,2.19,3.1084033232808457]
[null,null,null,null,null,null,null,null,null,null,null,null,null,null,null,null,"2013-12-01",-1.1299999999999999,-0.06,2,null,0.72,1.4669486618829108]
[null,null,null,null,null,null,null,null,null,null,null,null,null,null,null,null,"2014-01-01",-1.18,0.08,1.69,null,-0.3,0.39115002325355025]
[null,null,null,null,null,null,null,null,null,null,null,null,null,null,null,null,"2014-02-01",-1.28,0.12,1.44,-1.99,-0.87,2.3589925505498009E-4]
[null,null,null,null,null,null,null,null,null,null,null,null,null,null,null,null,"2014-03-01",-1.31,0.21,1.48,-2.0699999999999998,-2.2000000000000002,-1.8706462959597148]
[null,null,null,null,null,null,null,null,null,null,null,null,null,null,null,null,"2014-04-01",-1.31,0.1,1.44,-2,-3.51,-3.2698088321971506]
[null,null,null,null,null,null,null,null,null,null,null,null,null,null,null,null,"2014-05-01",-1.91,-0.3,1.1200000000000001,-2.71,-4.1500000000000004,-3.7302807453416147]
[null,null,null,null,null,null,null,null,null,null,null,null,null,null,null,null,"2014-06-01",-1.91,-0.13,0.72,{"$f":"'[1]Type marques'!L19","v":-2.75},-4.68,-4.6844364933424911]
[null,null,null,null,null,null,null,null,null,null,null,null,null,null,null,null,"2014-07-01",-2.1,0,0.69,-3.09,-5.38,-5.4408806448137739]
[null,null,null,null,null,null,null,null,null,null,null,null,null,null,null,null,"*Les chiffres de décembre sont estimés par interpolation linéaire"]
[]
[]
[]
[]
[]
[]
[]
[]
[]
[]
[]
[]
[]
[]
[]
[]
[]
[]
[]
[]
[]
[]
[]
[]
[]
[]
[]
[]
[]
[]
[]
[]
[]
[]
[]
[]
[]
[]
[]
[]
[]
[]
[]
[]
[null,null,null,null,null,null,null,null,null,null,null,null,null,null,null,null,null,{"$f":"+R183-1","v":-1},{"$f":"+S183-1","v":-1},{"$f":"+T183-1","v":-1},null,{"$f":"+V183-1","v":-1}]

{"sheet":"Circuits","index":2,"n_rows":57,"n_cols":19,"rows_kept":57,"cut":false,"hidden":false,"merged":[]}
["Observatoire des prix et des marges"]
[]
["Produits de grande consommation – Grande distribution"]
[null,null,null,null,null,null,null,null,null,null,null,null,null,null,"Hypers","Supers","H.D.","GMS"]
[null,null,null,null,null,null,null,null,null,null,null,null,null,"Exhaustif",{"$f":"+O9","v":-2.2599999999999998},{"$f":"+O10","v":-1.72},{"$f":"+O11","v":-5.38},{"$f":"+O12","v":-2.1}]
[null,null,null,null,null,null,null,null,null,null,null,null,null,"Marques Fabricants",-3.18,-2.89,-5.35,-3.09]
[]
[null,null,null,null,null,null,null,null,null,null,null,null,null,null,"Exha",null,null,"Mdd","PPx"]
[null,null,null,null,null,null,null,null,null,null,null,null,null,"HM",-2.2599999999999998,-3.18,-0.11,1.07]
[null,null,null,null,null,null,null,null,null,null,null,null,null,"SM",-1.72,-2.89,0.44,0.38]
[null,null,null,null,null,null,null,null,null,null,null,null,null,"HD",-5.38,-5.35,-5.58,-4.5199999999999996]
[null,null,null,null,null,null,null,null,null,null,null,null,null,"TTMAG",-2.1,-3.09,0,0.69]
[]
[]
[]
[]
[]
[]
[]
[]
[]
[]
[]
[]
[]
[]
[]
[]
[]
[]
[]
[]
[]
[]
[]
[]
[]
[]
[]
[]
[]
[]
[]
[]
[]
[]
[]
[]
[]
[]
[]
[]
[]
[]
[]
[]
[null,"*Plus Grandes Marques : les références des marques majeures par catégories de produits, définies en GMS"]

{"sheet":"HistoriqCircuits","index":3,"n_rows":120,"n_cols":21,"rows_kept":120,"cut":false,"hidden":false,"merged":[]}
["Observatoire des prix et des marges",null,null,null,null,null,null,null,null,null,null,null,null,null,null,"Evolution de l'INFLATION ANNUELLE par TYPES de CIRCUITS"]
[null,null,null,null,null,null,null,null,null,null,null,null,null,null,null,"pour les Produits PGC+PFLS en Exhaustif"]
["Produits de grande consommation – Grande distribution"]
[null,null,null,null,null,null,null,null,null,null,null,null,null,null,null,"TOTAL GENERAL                            ",null,"Hypers","Supers","Hard-Discount","GMS"]
[null,null,null,null,null,null,null,null,null,null,null,null,null,null,null,null,"Janvier 2005",-1.2E-2,-6.7999999999999996E-3,-1.6299999999999999E-2,-1.01E-2]
[null,null,null,null,null,null,null,null,null,null,null,null,null,null,null,null,"Février 2005",-1.29E-2,-0.01,-1.34E-2,-1.17E-2]
[null,null,null,null,null,null,null,null,null,null,null,null,null,null,null,null,"Mars 2005",-1.4E-2,-1.2500000000000001E-2,-2.12E-2,-1.3299999999999999E-2]
[null,null,null,null,null,null,null,null,null,null,null,null,null,null,null,null,"Avril 2005",-1.46E-2,-1.2E-2,-1.6E-2,-1.34E-2]
[null,null,null,null,null,null,null,null,null,null,null,null,null,null,null,null,"Mai 2005",-1.5800000000000002E-2,-1.34E-2,-1.5800000000000002E-2,-1.47E-2]
[null,null,null,null,null,null,null,null,null,null,null,null,null,null,null,null,"Juin 2005",-1.6500000000000001E-2,-1.3599999999999999E-2,-1.5299999999999999E-2,-1.52E-2]
[null,null,null,null,null,null,null,null,null,null,null,null,null,null,null,null,"Juillet 2005*",-1.21E-2,-1.1766666666666667E-2,-1.5266666666666666E-2,-1.1933333333333332E-2]
[null,null,null,null,null,null,null,null,null,null,null,null,null,null,null,null,"Août 2005*",-7.7000000000000011E-3,-9.9333333333333339E-3,-1.5233333333333333E-2,-8.666666666666668E-3]
[null,null,null,null,null,null,null,null,null,null,null,null,null,null,null,null,"Sept. 2005",-3.3E-3,-8.0999999999999996E-3,-1.52E-2,-5.4000000000000003E-3]
[null,null,null,null,null,null,null,null,null,null,null,null,null,null,null,null,"Oct. 2005",-1E-3,-2.0999999999999999E-3,-1.41E-2,-1.5E-3]
[null,null,null,null,null,null,null,null,null,null,null,null,null,null,null,null,"Nov. 2005",-4.0000000000000002E-4,-4.1999999999999997E-3,-1.12E-2,-2.0999999999999999E-3]
[null,null,null,null,null,null,null,null,null,null,null,null,null,null,null,null,"Déc.2005*",2.0999999999999999E-3,-2.6999999999999997E-3,-9.2999999999999992E-3,-4.9999999999999914E-5]
[null,null,null,null,null,null,null,null,null,null,null,null,null,null,null,null,"Janvier 2006",4.5999999999999999E-3,-1.1999999999999999E-3,-7.4000000000000003E-3,2E-3]
[null,null,null,null,null,null,null,null,null,null,null,null,null,null,null,null,"Février 2006",4.7999999999999996E-3,-6.9999999999999999E-4,-4.0000000000000001E-3,2.3999999999999998E-3]
[null,null,null,null,null,null,null,null,null,null,null,null,null,null,null,null,"Mars 2006",6.1000000000000004E-3,1.8E-3,-5.0000000000000001E-4,4.1000000000000003E-3]
[null,null,null,null,null,null,null,null,null,null,null,null,null,null,null,null,"Avril 2006",5.4000000000000003E-3,2.2000000000000001E-3,-1.6000000000000001E-3,3.8999999999999998E-3]
[null,null,null,null,null,null,null,null,null,null,null,null,null,null,null,null,"Mai 2006",5.4000000000000003E-3,2.3999999999999998E-3,-3.2000000000000002E-3,4.1000000000000003E-3]
[null,null,null,null,null,null,null,null,null,null,null,null,null,null,null,null,"Juin 2006",3.2000000000000002E-3,5.0000000000000001E-4,-6.7999999999999996E-3,2E-3]
[null,null,null,null,null,null,null,null,null,null,null,null,null,null,null,null,"Juillet 2006",2.5500000000000002E-3,5.3249999999999999E-3,-3.8999999999999998E-3,3.375E-3]
[null,null,null,null,null,null,null,null,null,null,null,null,null,null,null,null,"Août 2006",8.0000000000000004E-4,9.1999999999999998E-3,-2.8E-3,3.7000000000000002E-3]
[null,null,null,null,null,null,null,null,null,null,null,null,null,null,null,null,"Sept. 2006",0,2.2000000000000001E-3,-3.0999999999999999E-3,8.9999999999999998E-4]
[null,null,null,null,null,null,null,null,null,null,null,null,null,null,null,null,"Oct. 2006",-6.9999999999999999E-4,4.8000000000000001E-4,5.0000000000000001E-4,1.4999999999999999E-4]
[null,null,null,null,null,null,null,null,null,null,null,null,null,null,null,null,"Nov.2006",4.0000000000000002E-4,1.1999999999999999E-3,5.1999999999999995E-4,6.9999999999999999E-4]
[null,null,null,null,null,null,null,null,null,null,null,null,null,null,null,null,"Déc.2006*",-1.6999999999999999E-3,1.4499999999999999E-3,1.6600000000000002E-3,-4.5000000000000004E-4]
[null,null,null,null,null,null,null,null,null,null,null,null,null,null,null,null,"Jan.2007",-3.8E-3,1.7000000000000001E-3,2.8000000000000004E-3,-1.6000000000000001E-3]
[null,null,null,null,null,null,null,null,null,null,null,null,null,null,null,null,"Fév. 2007",-7.7000000000000002E-3,1.1999999999999999E-3,4.3E-3,-4.4000000000000003E-3]
[null,null,null,null,null,null,null,null,null,null,null,null,null,null,null,null,"2007-03-01",-6.1999999999999998E-3,2.5999999999999999E-3,5.0000000000000001E-3,-1E-3]
[null,null,null,null,null,null,null,null,null,null,null,null,null,null,null,null,"2007-04-01",-8.8999999999999999E-3,-3.5999999999999999E-3,-1.5E-3,-7.4000000000000003E-3]
[null,null,null,null,null,null,null,null,null,null,null,null,null,null,null,null,"2007-05-01",-1.0700000000000001E-2,1.5E-3,-1.2999999999999999E-3,-7.4000000000000003E-3]
[null,null,null,null,null,null,null,null,null,null,null,null,null,null,null,null,"2007-06-01",-7.6E-3,2.2000000000000001E-3,4.7999999999999996E-3,-4.8999999999999998E-3]
[null,null,null,null,null,null,null,null,null,null,null,null,null,null,null,null,"2007-07-01",-7.3000000000000001E-3,4.1999999999999997E-3,6.7999999999999996E-3,-3.7000000000000002E-3]
[null,null,null,null,null,null,null,null,null,null,null,null,null,null,null,null,"2007-08-01",-5.3E-3,7.4999999999999997E-3,1.29E-2,-7.000000000000001E-4]
[null,null,null,null,null,null,null,null,null,null,null,null,null,null,null,null,"2007-09-01",-3.2000000000000002E-3,4.1999999999999997E-3,1.24E-2,-8.9999999999999998E-4]
[null,null,null,null,null,null,null,null,null,null,null,null,null,null,null,null,"2007-10-01",-1E-3,4.4000000000000003E-3,1.3000000000000001E-2,7.000000000000001E-4]
[null,null,null,null,null,null,null,null,null,null,null,null,null,null,null,null,"2007-11-01",3.3E-3,6.7000000000000002E-3,3.4999999999999996E-3,4.3E-3]
[null,null,null,null,null,null,null,null,null,null,null,null,null,null,null,null,"2007-12-01",1.3100000000000001E-2,1.6399999999999998E-2,2.0499999999999997E-2,1.4199999999999999E-2]
[null,null,null,null,null,null,null,null,null,null,null,null,null,null,null,null,"2008-01-01",2.41E-2,2.3300000000000001E-2,3.7599999999999995E-2,2.3900000000000001E-2]
[null,null,null,null,null,null,null,null,null,null,null,null,null,null,null,null,"2008-02-01",3.32E-2,3.2400000000000005E-2,4.0747628825657502E-2,3.3000000000000002E-2]
[null,null,null,null,null,null,null,null,null,null,null,null,null,null,null,null,"2008-03-01",3.44E-2,3.8800000000000001E-2,3.8199999999999998E-2,3.5499999999999997E-2]
[null,null,null,null,null,null,null,null,null,null,null,null,null,null,null,null,"2008-04-01",3.5299999999999998E-2,4.1299999999999996E-2,3.7699999999999997E-2,3.6699999999999997E-2]
[null,null,null,null,null,null,null,null,null,null,null,null,null,null,null,null,"2008-05-01",3.9E-2,3.9199999999999999E-2,3.7900000000000003E-2,3.9100000000000003E-2]
[null,null,null,null,null,null,null,null,null,null,null,null,null,null,null,null,"2008-06-01",3.85E-2,3.8800000000000001E-2,3.7999999999999999E-2,3.8599999999999995E-2]
[null,null,null,null,null,null,null,null,null,null,null,null,null,null,null,null,"2008-07-01",4.0099999999999997E-2,4.1399999999999999E-2,4.9599999999999998E-2,4.0399999999999998E-2]
[null,null,null,null,null,null,null,null,null,null,null,null,null,null,null,null,"2008-08-01",3.9300000000000002E-2,4.3400000000000001E-2,4.3099999999999999E-2,4.0300000000000002E-2]
[null,null,null,null,null,null,null,null,null,null,null,null,null,null,null,null,"2008-09-01",3.9399999999999998E-2,4.6300000000000001E-2,3.4799999999999998E-2,4.1200000000000001E-2]
[null,null,null,null,null,null,null,null,null,null,null,null,null,null,null,null,"2008-10-01",3.8599999999999995E-2,4.5700000000000005E-2,4.0500000000000001E-2,4.0399999999999998E-2]
[null,null,null,null,null,null,null,null,null,null,null,null,null,null,null,null,"2008-11-01",3.7699999999999997E-2,4.5999999999999999E-2,3.39E-2,3.9800000000000002E-2]
[null,null,null,null,null,null,null,null,null,null,null,null,null,null,null,null,"2008-12-01",2.8199999999999999E-2,3.8599999999999995E-2,2.2099999999999998E-2,3.0600000000000002E-2]
[null,null,null,null,null,null,null,null,null,null,null,null,null,null,null,null,"2009-01-01",1.8000000000000002E-2,2.69E-2,1.7100000000000001E-2,2.0099999999999996E-2]
[null,null,null,null,null,null,null,null,null,null,null,null,null,null,null,null,"2009-02-01",1.3999999999999999E-2,1.95E-2,1.2800000000000001E-2,1.54E-2]
[null,null,null,null,null,null,null,null,null,null,null,null,null,null,null,null,"2009-03-01",1.24E-2,1.4499999999999999E-2,8.3999999999999995E-3,1.29E-2]
[null,null,null,null,null,null,null,null,null,null,null,null,null,null,null,null,"2009-04-01",1.01E-2,1.1000000000000001E-2,1.5100000000000001E-2,1.04E-2]
[null,null,null,null,null,null,null,null,null,null,null,null,null,null,null,null,"2009-05-01",8.8999999999999999E-3,9.7999999999999997E-3,1.4200000000000001E-2,9.1000000000000004E-3]
[null,null,null,null,null,null,null,null,null,null,null,null,null,null,null,null,"2009-06-01",7.9000000000000008E-3,8.6999999999999994E-3,7.6E-3,8.1000000000000013E-3]
[null,null,null,null,null,null,null,null,null,null,null,null,null,null,null,null,"2009-07-01",4.7999999999999996E-3,8.6999999999999994E-3,7.9000000000000008E-3,5.7000000000000002E-3]
[null,null,null,null,null,null,null,null,null,null,null,null,null,null,null,null,"2009-08-01",5.6999999999999993E-3,3.9000000000000003E-3,6.0999999999999995E-3,5.6999999999999993E-3]
[null,null,null,null,null,null,null,null,null,null,null,null,null,null,null,null,"2009-09-01",7.4000000000000003E-3,3.8E-3,3.0999999999999999E-3,6.5000000000000006E-3]
[null,null,null,null,null,null,null,null,null,null,null,null,null,null,null,null,"2009-10-01",5.1000000000000004E-3,2.0000000000000001E-4,3.8E-3,3.9000000000000003E-3]
[null,null,null,null,null,null,null,null,null,null,null,null,null,null,null,null,"2009-11-01",3.9000000000000003E-3,-2.7000000000000001E-3,-2.9999999999999997E-4,2.2000000000000001E-3]
[null,null,null,null,null,null,null,null,null,null,null,null,null,null,null,null,"2009-12-01",2.5000000000000001E-3,-5.6999999999999993E-3,1.4000000000000002E-3,5.9999999999999995E-4]
[null,null,null,null,null,null,null,null,null,null,null,null,null,null,null,null,"2010-01-01",2.5000000000000001E-3,-3.0999999999999999E-3,-8.1000000000000013E-3,1.1000000000000001E-3]
[null,null,null,null,null,null,null,null,null,null,null,null,null,null,null,null,"2010-02-01",2.8999999999999998E-3,-1.8E-3,-1.3299999999999999E-2,1.6999999999999999E-3]
[null,null,null,null,null,null,null,null,null,null,null,null,null,null,null,null,"2010-03-01",3.4999999999999996E-3,1.1999999999999999E-3,-1.54E-2,2.8999999999999998E-3]
[null,null,null,null,null,null,null,null,null,null,null,null,null,null,null,null,"2010-04-01",3.3E-3,3.3E-3,-1.6E-2,1.8E-3]
[null,null,null,null,null,null,null,null,null,null,null,null,null,null,null,null,"2010-05-01",2.5999999999999999E-3,4.8999999999999998E-3,-1.5300000000000001E-2,3.0999999999999999E-3]
[null,null,null,null,null,null,null,null,null,null,null,null,null,null,null,null,"2010-06-01",-1.4000000000000002E-3,2.5000000000000001E-3,-1.5700000000000002E-2,-4.0000000000000002E-4]
[null,null,null,null,null,null,null,null,null,null,null,null,null,null,null,null,"2010-07-01",-3.0999999999999999E-3,-3.0000000000000001E-3,-1.9400000000000001E-2,-3.0999999999999999E-3]
[null,null,null,null,null,null,null,null,null,null,null,null,null,null,null,null,"2010-08-01",-6.5000000000000006E-3,-5.0000000000000001E-3,-1.9400000000000001E-2,-6.1999999999999998E-3]
[null,null,null,null,null,null,null,null,null,null,null,null,null,null,null,null,"2010-09-01",-8.6999999999999994E-3,-7.9000000000000008E-3,-2.0499999999999997E-2,-8.5000000000000006E-3]
[null,null,null,null,null,null,null,null,null,null,null,null,null,null,null,null,"2010-10-01",-1.0500000000000001E-2,-8.6999999999999994E-3,-0.02,-1.01E-2]
[null,null,null,null,null,null,null,null,null,null,null,null,null,null,null,null,"2010-11-01",-9.8999999999999991E-3,-8.6E-3,-1.1599999999999999E-2,-9.5999999999999992E-3]
[null,null,null,null,null,null,null,null,null,null,null,null,null,null,null,null,"2010-12-01",-9.7000000000000003E-3,-7.3000000000000001E-3,-1.4000000000000002E-3,-9.1000000000000004E-3]
[null,null,null,null,null,null,null,null,null,null,null,null,null,null,null,null,"2011-01-01",-9.300000000000001E-3,-9.7999999999999997E-3,1.15E-2,-9.3999999999999986E-3]
[null,null,null,null,null,null,null,null,null,null,null,null,null,null,null,null,"2011-02-01",-1.0800000000000001E-2,-8.8000000000000005E-3,1.7000000000000001E-2,-1.03E-2]
[null,null,null,null,null,null,null,null,null,null,null,null,null,null,null,null,"2011-03-01",-6.0999999999999995E-3,-2.8000000000000004E-3,1.6200000000000003E-2,-5.3E-3]
[null,null,null,null,null,null,null,null,null,null,null,null,null,null,null,null,"2011-04-01",-1E-4,2E-3,2.0299999999999999E-2,4.0000000000000002E-4]
[null,null,null,null,null,null,null,null,null,null,null,null,null,null,null,null,"2011-05-01",5.6000000000000008E-3,7.6E-3,3.2899999999999999E-2,6.0999999999999995E-3]
[null,null,null,null,null,null,null,null,null,null,null,null,null,null,null,null,"2011-06-01",1.37E-2,1.66E-2,3.9100000000000003E-2,1.4499999999999999E-2]
[null,null,null,null,null,null,null,null,null,null,null,null,null,null,null,null,"2011-07-01",1.6799999999999999E-2,2.3399999999999997E-2,4.2175000000000004E-2,1.84E-2]
[null,null,null,null,null,null,null,null,null,null,null,null,null,null,null,null,"2011-08-01",1.8200000000000001E-2,2.5000000000000001E-2,4.0831249999999999E-2,1.9799999999999998E-2]
[null,null,null,null,null,null,null,null,null,null,null,null,null,null,null,null,"2011-09-01",1.9299999999999998E-2,2.76E-2,6.0199999999999997E-2,2.1299999999999999E-2]
[null,null,null,null,null,null,null,null,null,null,null,null,null,null,null,null,"2011-10-01",2.1700000000000001E-2,2.8399999999999998E-2,6.2100000000000002E-2,2.3399999999999997E-2]
[null,null,null,null,null,null,null,null,null,null,null,null,null,null,null,null,"2011-11-01",2.3799999999999998E-2,3.1300000000000001E-2,6.3899999999999998E-2,2.5699999999999997E-2]
[null,null,null,null,null,null,null,null,null,null,null,null,null,null,null,null,"2011-12-01",2.4500000000000001E-2,3.2500000000000001E-2,6.7599999999999993E-2,2.6499999999999999E-2]
[null,null,null,null,null,null,null,null,null,null,null,null,null,null,null,null,"2012-01-01",2.53E-2,3.32E-2,6.3099999999999989E-2,2.7000000000000003E-2]
[null,null,null,null,null,null,null,null,null,null,null,null,null,null,null,null,"2012-02-01",2.58E-2,3.27E-2,5.7099999999999998E-2,2.7400000000000001E-2]
[null,null,null,null,null,null,null,null,null,null,null,null,null,null,null,null,"2012-03-01",2.18E-2,2.9399999999999999E-2,5.6799999999999996E-2,2.3599999999999999E-2]
[null,null,null,null,null,null,null,null,null,null,null,null,null,null,null,null,"2012-04-01",1.5900000000000001E-2,2.35E-2,5.5999999999999994E-2,1.77E-2]
[null,null,null,null,null,null,null,null,null,null,null,null,null,null,null,null,"2012-05-01",1.3300000000000001E-2,2.1499999999999998E-2,5.1900000000000002E-2,1.5300000000000001E-2]
[null,null,null,null,null,null,null,null,null,null,null,null,null,null,null,null,"2012-06-01",9.7999999999999997E-3,1.5300000000000001E-2,3.7900000000000003E-2,1.11E-2]
[null,null,null,null,null,null,null,null,null,null,null,null,null,null,null,null,"2012-07-01",6.3E-3,1.1599999999999999E-2,3.7200000000000004E-2,8.3999999999999995E-3]
[null,null,null,null,null,null,null,null,null,null,null,null,null,null,null,null,"2012-08-01",7.0999999999999995E-3,1.03E-2,2.9500000000000002E-2,8.3999999999999995E-3]
[null,null,null,null,null,null,null,null,null,null,null,null,null,null,null,null,"2012-09-01",4.6999999999999993E-3,6.3E-3,2.7900000000000001E-2,5.4000000000000003E-3]
[null,null,null,null,null,null,null,null,null,null,null,null,null,null,null,null,"2012-10-01",3.4999999999999996E-3,6.5000000000000006E-3,2.63E-2,4.6999999999999993E-3]
[null,null,null,null,null,null,null,null,null,null,null,null,null,null,null,null,"2012-11-01",1.1000000000000001E-3,4.1999999999999997E-3,0.02,2.3E-3]
[null,null,null,null,null,null,null,null,null,null,null,null,null,null,null,null,"2012-12-01",-2.0000000000000001E-4,3.4000000000000002E-3,1.49E-2,1.1000000000000001E-3]
[null,null,null,null,null,null,null,null,null,null,null,null,null,null,null,null,"2013-01-01",-5.9999999999999995E-4,3.4000000000000002E-3,1.9099999999999999E-2,1E-3]
[null,null,null,null,null,null,null,null,null,null,null,null,null,null,null,null,"2013-02-01",-2.5000000000000001E-3,1.1999999999999999E-3,1.5100000000000001E-2,-1.1000000000000001E-3]
[null,null,null,null,null,null,null,null,null,null,null,null,null,null,null,null,"2013-03-01",-2.8999999999999998E-3,1.9E-3,1.7500000000000002E-2,-1.1000000000000001E-3]
[null,null,null,null,null,null,null,null,null,null,null,null,null,null,null,null,"2013-04-01",-6.6E-3,0,1.9699999999999999E-2,-4.1999999999999997E-3]
[null,null,null,null,null,null,null,null,null,null,null,null,null,null,null,null,"2013-05-01",-7.9000000000000008E-3,-7.000000000000001E-4,2.3300000000000001E-2,-5.3E-3]
[null,null,null,null,null,null,null,null,null,null,null,null,null,null,null,null,"2013-06-01",-9.1999999999999998E-3,4.0000000000000002E-4,2.2700000000000001E-2,-5.6999999999999993E-3]
[null,null,null,null,null,null,null,null,null,null,null,null,null,null,null,null,"2013-07-01",-1.0500000000000001E-2,-1.7000000000000001E-3,2.3599999999999999E-2,-7.1999999999999998E-3]
[null,null,null,null,null,null,null,null,null,null,null,null,null,null,null,null,"2013-08-01",-1.1299999999999999E-2,-1.8E-3,2.5899999999999999E-2,-7.7000000000000002E-3]
[null,null,null,null,null,null,null,null,null,null,null,null,null,null,null,null,"2013-09-01",-1.21E-2,-2.8000000000000004E-3,2.3399999999999997E-2,-8.8000000000000005E-3]
[null,null,null,null,null,null,null,null,null,null,null,null,null,null,null,null,"2013-10-01",-1.3600000000000001E-2,-5.0000000000000001E-3,2.5899999999999999E-2,-1.04E-2]
[null,null,null,null,null,null,null,null,null,null,null,null,null,null,null,null,"2013-11-01",-1.3500000000000002E-2,-6.0999999999999995E-3,2.1899999999999999E-2,-1.0800000000000001E-2]
[null,null,null,null,null,null,null,null,null,null,null,null,null,null,null,null,"2013-12-01",-1.37E-2,-6.6E-3,7.1999999999999998E-3,-1.1299999999999999E-2]
[null,null,null,null,null,null,null,null,null,null,null,null,null,null,null,null,"2014-01-01",-1.37E-2,-8.3000000000000001E-3,-3.0000000000000001E-3,-1.18E-2]
[null,null,null,null,null,null,null,null,null,null,null,null,null,null,null,null,"2014-02-01",-1.43E-2,-9.3999999999999986E-3,-8.6999999999999994E-3,-1.2800000000000001E-2]
[null,null,null,null,null,null,null,null,null,null,null,null,null,null,null,null,"2014-03-01",-1.47E-2,-9.5999999999999992E-3,-2.2000000000000002E-2,-1.3100000000000001E-2]
[null,null,null,null,null,null,null,null,null,null,null,null,null,null,null,null,"2014-04-01",-1.4499999999999999E-2,-9.5999999999999992E-3,-3.5099999999999999E-2,-1.3100000000000001E-2]
[null,null,null,null,null,null,null,null,null,null,null,null,null,null,null,null,"2014-05-01",-2.0400000000000001E-2,-1.6E-2,-4.1500000000000002E-2,-1.9099999999999999E-2]
[null,null,null,null,null,null,null,null,null,null,null,null,null,null,null,null,"2014-06-01",-2.0299999999999999E-2,-1.6399999999999998E-2,-4.6799999999999994E-2,-1.9099999999999999E-2]
[null,null,null,null,null,null,null,null,null,null,null,null,null,null,null,null,"2014-07-01",-2.2599999999999999E-2,-1.72E-2,-5.3800000000000001E-2,-2.1000000000000001E-2]
[null,null,null,null,null,null,null,null,null,null,null,null,null,null,null,null,"*Chiffres estimés par interpolation linéaire"]

{"sheet":"Familles Plus","index":4,"n_rows":100,"n_cols":28,"rows_kept":100,"cut":false,"hidden":false,"merged":[[11,1,11,3]]}
["Observatoire des prix et des marges",null,null,null,null,null,null,null,null,null,null,null,null,null,null,null,null,null,null,null,null,null,"grprd","Fam/ray","Exhaustif","MDD","PPX","mfab"]
[null,null,null,null,null,null,null,null,null,null,null,null,null,null,null,null,null,null,null,null,null,null,"FA00018","Fruits secs, pruneaux",2.5299999999999998,2.77,8,{"$f":"VLOOKUP(W2,[2]Feuil1!$A$1:$G$65536,7,0)","v":1.94}]
["Produits de grande consommation – Grande distribution",null,null,null,null,null,null,null,null,null,null,null,null,null,null,null,null,null,"EXHAUSTIF","MDD","PPX","MFAB","FA00098","Traitements, engrais plant",1.22,2.41,9.5,{"$f":"VLOOKUP(W3,[2]Feuil1!$A$1:$G$65536,7,0)","v":0.68}]
[null,null,null,null,null,null,null,null,null,null,null,null,null,null,null,null,null,null,null,null,null,null,"FA00046","Digestif,liqueur,eau de vie",1.18,2.5299999999999998,-0.8,{"$f":"VLOOKUP(W4,[2]Feuil1!$A$1:$G$65536,7,0)","v":0.69}]
[null,null,null,null,null,null,null,null,null,null,null,null,null,null,null,null,null,"Fruits secs, pruneaux",2.5299999999999998,2.77,8,1.94,"FA00043","Cidre, cider",1.08,4.37,0.06,{"$f":"VLOOKUP(W5,[2]Feuil1!$A$1:$G$65536,7,0)","v":-0.34}]
[null,null,null,null,null,null,null,null,null,null,null,null,null,null,null,null,null,"Traitements, engrais plant",1.22,2.41,9.5,0.68,"FA00002","Paté,rillet,sciss,foie gras",1.05,4.09,0.39,{"$f":"VLOOKUP(W6,[2]Feuil1!$A$1:$G$65536,7,0)","v":-0.35}]
[null,null,null,null,null,null,null,null,null,null,null,null,null,null,null,null,null,"Digestif,liqueur,eau de vie",1.18,2.5299999999999998,-0.8,0.69,"FA00044","Vin (Table et Pays)",1.05,3.53,2.4500000000000002,{"$f":"VLOOKUP(W7,[2]Feuil1!$A$1:$G$65536,7,0)","v":-0.4}]
[null,null,null,null,null,null,null,null,null,null,null,null,null,null,null,null,null,"Cidre, cider",1.08,4.37,0.06,-0.34,"FA00048","Apéritifs alcoolisés",0.96,2.1,1.51,{"$f":"VLOOKUP(W8,[2]Feuil1!$A$1:$G$65536,7,0)","v":0.56999999999999995}]
[null,null,null,null,null,null,null,null,null,null,null,null,null,null,null,null,null,"Paté,rillet,sciss,foie gras",1.05,4.09,0.39,-0.35,"FA00045","Champagne, mousseux",0.51,1.72,2.19,{"$f":"VLOOKUP(W9,[2]Feuil1!$A$1:$G$65536,7,0)","v":-0.04}]
[null,null,null,null,null,null,null,null,null,null,null,null,null,null,null,null,null,"Vin (Table et Pays)",1.05,3.53,2.4500000000000002,-0.4,"FA00085","Saurisserie",0.49,1.64,0.26,{"$f":"VLOOKUP(W10,[2]Feuil1!$A$1:$G$65536,7,0)","v":-0.46}]
[null,null,null,null,null,null,null,null,null,null,null,null,null,null,null,null,null,"Apéritifs alcoolisés",0.96,2.1,1.51,0.56999999999999995,"FA00081","FRUITS MER, POISSON NAT, PANES, GRENOUILLE ESCARGOT",0.42,1.91,2.09,{"$f":"VLOOKUP(W11,[2]Feuil1!$A$1:$G$65536,7,0)","v":-1.97}]
[null,null,null,null,null,"EXHAUSTIF",null,"MARQUES FABRICANTS",null,"MDD",null,"PPX",null,null,null,null,null,"Champagne, mousseux",0.51,1.72,2.19,-0.04,"FA00080","Plats cuisinés tt prêt surg",0.28000000000000003,1.33,1.37,{"$f":"VLOOKUP(W12,[2]Feuil1!$A$1:$G$65536,7,0)","v":-1.62}]
[null,{"$f":"+R5","v":"Fruits secs, pruneaux"},null,null,null,{"$f":"+S5","v":2.5299999999999998},null,1.94,null,{"$f":"+T5","v":2.77},null,{"$f":"+U5","v":8},null,null,null,null,null,"Saurisserie",0.49,1.64,0.26,-0.46,"FA00005","Légumes secs et deshydratés",0.09,-1.02,8.15,{"$f":"VLOOKUP(W13,[2]Feuil1!$A$1:$G$65536,7,0)","v":0.4}]
[null,"Traitements, engrais plant",null,null,null,1.22,null,0.68,null,2.41,null,9.5,null,null,null,null,null,"Fruits mer, poisson nat, panes, grenouille escargot",0.42,1.91,2.09,-1.97,"FA00079","Entrée,pizza,fast food surg",0.09,1.75,-0.5,{"$f":"VLOOKUP(W14,[2]Feuil1!$A$1:$G$65536,7,0)","v":-1.59}]
[null,"Digestif,liqueur,eau de vie",null,null,null,1.18,null,0.69,null,2.5299999999999998,null,-0.8,null,null,null,null,null,null,null,null,null,null,"FA00078","Fromages",0.05,1.07,1.97,{"$f":"VLOOKUP(W15,[2]Feuil1!$A$1:$G$65536,7,0)","v":-0.56999999999999995}]
[null,"Cidre, cider",null,null,null,1.08,null,-0.34,null,4.37,null,0.06,null,null,null,null,null,null,null,null,null,null,"FA00047","Whisky, bourbon",0,1.89,0.36,{"$f":"VLOOKUP(W16,[2]Feuil1!$A$1:$G$65536,7,0)","v":-0.2}]
[null,"Paté,rillet,sciss,foie gras",null,null,null,1.05,null,-0.35,null,4.09,null,0.39,null,null,null,null,null,null,null,null,null,null,"FA00083","Viande,volaill,charcut surg",0,0.47,0.52,{"$f":"VLOOKUP(W17,[2]Feuil1!$A$1:$G$65536,7,0)","v":-0.54}]
[null,"Vin (Table et Pays)",null,null,null,1.05,null,-0.4,null,3.53,null,2.4500000000000002,null,null,null,null,null,null,null,null,null,null,"FA00039","Sirop,concent,poudre boiss",-0.04,5.17,0.08,{"$f":"VLOOKUP(W18,[2]Feuil1!$A$1:$G$65536,7,0)","v":-2.97}]
[null,"Apéritifs alcoolisés",null,null,null,0.96,null,0.56999999999999995,null,2.1,null,1.51,null,null,null,null,null,null,null,null,null,null,"FA00049","Apéritifs sans alcool",-0.49,3.17,-0.65,{"$f":"VLOOKUP(W19,[2]Feuil1!$A$1:$G$65536,7,0)","v":-1.2}]
[null,"Champagne, mousseux",null,null,null,0.51,null,-0.04,null,1.72,null,2.19,null,null,null,null,null,null,null,null,null,null,"FA00075","Lait",-0.56000000000000005,0.57999999999999996,4.66,{"$f":"VLOOKUP(W20,[2]Feuil1!$A$1:$G$65536,7,0)","v":-1.31}]
[null,"Saurisserie",null,null,null,0.49,null,-0.46,null,1.64,null,0.26,null,null,null,null,null,null,null,null,null,null,"FA00053","Maquillage",-0.63,-1.2,-1,{"$f":"VLOOKUP(W21,[2]Feuil1!$A$1:$G$65536,7,0)","v":-0.56999999999999995}]
[null,"Fruits mer, poisson nat, panes, grenouille escargot",null,null,null,0.42,null,-1.97,null,1.91,null,2.09,null,null,null,null,null,null,null,null,null,null,"FA00011","Vinaigre",-0.79,-0.63,-0.33,{"$f":"VLOOKUP(W22,[2]Feuil1!$A$1:$G$65536,7,0)","v":-1.04}]
[null,null,null,null,null,null,null,null,null,null,null,null,null,null,null,null,null,null,null,null,null,null,"FA00090","Bas et collants",-0.91,-1.1299999999999999,-0.51,{"$f":"VLOOKUP(W23,[2]Feuil1!$A$1:$G$65536,7,0)","v":-0.86}]
[null,"Leaders : 7 000 produits détenus par + 40 % des magasins HM & SM en France.",null,null,null,null,null,null,null,null,null,null,null,null,null,null,null,null,null,null,null,null,"FA00073","Charcuterie libre service",-1.01,0.51,-0.67,{"$f":"VLOOKUP(W24,[2]Feuil1!$A$1:$G$65536,7,0)","v":-2.34}]
[null,"Plus Grandes Marques = \"Majeurs\": les références des marques majeures par catégories de produits.",null,null,null,null,null,null,null,null,null,null,null,null,null,null,null,null,null,null,null,null,"FA00001","Plats cuisinés",-1.03,0.32,1.87,{"$f":"VLOOKUP(W25,[2]Feuil1!$A$1:$G$65536,7,0)","v":-1.82}]
[null,null,null,null,null,null,null,null,null,null,null,null,null,null,null,null,null,null,null,null,null,null,"FA00077","Oeufs",-1.08,-3.24,-0.04,{"$f":"VLOOKUP(W26,[2]Feuil1!$A$1:$G$65536,7,0)","v":0.26}]
[null,null,null,null,null,null,null,null,null,null,null,null,null,null,null,null,null,null,null,null,null,null,"FA00094","Piles",-1.1000000000000001,-1.07,1.6,{"$f":"VLOOKUP(W27,[2]Feuil1!$A$1:$G$65536,7,0)","v":-1.42}]
[null,null,null,null,null,null,null,null,null,null,null,null,null,null,null,null,null,null,null,null,null,null,"FA00069","Insecticides",-1.1100000000000001,-0.04,0.2,{"$f":"VLOOKUP(W28,[2]Feuil1!$A$1:$G$65536,7,0)","v":-1.34}]
[null,null,null,null,null,null,null,null,null,null,null,null,null,null,null,null,null,null,null,null,null,null,"FA00010","Huile",-1.1399999999999999,-0.32,-4.2,{"$f":"VLOOKUP(W29,[2]Feuil1!$A$1:$G$65536,7,0)","v":-1.32}]
[null,null,null,null,null,null,null,null,null,null,null,null,null,null,null,null,null,null,null,null,null,null,"FA00033","Fruits au sirop, au jus",-1.1599999999999999,-0.27,3.69,{"$f":"VLOOKUP(W30,[2]Feuil1!$A$1:$G$65536,7,0)","v":-2.63}]
[null,null,null,null,null,null,null,null,null,null,null,null,null,null,null,null,null,null,null,null,null,null,"FA00062","Papier hygiénique",-1.1599999999999999,-7.0000000000000007E-2,0.51,{"$f":"VLOOKUP(W31,[2]Feuil1!$A$1:$G$65536,7,0)","v":-3.47}]
[null,null,null,null,null,null,null,null,null,null,null,null,null,null,null,null,null,null,null,null,null,null,"FA00068","Désodorisants d'intérieur",-1.17,0.36,-0.61,{"$f":"VLOOKUP(W32,[2]Feuil1!$A$1:$G$65536,7,0)","v":-1.75}]
[null,null,null,null,null,null,null,null,null,null,null,null,null,null,null,null,null,null,null,null,null,null,"FA00012","Sel, poivre, épices, herbes",-1.18,2.68,3.76,{"$f":"VLOOKUP(W33,[2]Feuil1!$A$1:$G$65536,7,0)","v":-2.08}]
[null,null,null,null,null,null,null,null,null,null,null,null,null,null,null,null,null,null,null,null,null,null,"FA00095","Ampoules électriques",-1.18,-0.33,1.69,{"$f":"VLOOKUP(W34,[2]Feuil1!$A$1:$G$65536,7,0)","v":-1.69}]
[null,null,null,null,null,null,null,null,null,null,null,null,null,null,null,null,null,null,null,null,null,null,"FA00089","Vaisselle jetable",-1.29,-0.52,-3.03,{"$f":"VLOOKUP(W35,[2]Feuil1!$A$1:$G$65536,7,0)","v":-2.91}]
[null,null,null,null,null,null,null,null,null,null,null,null,null,null,null,null,null,null,null,null,null,null,"FA00014","Légumes vinaig, huile, saum",-1.32,0.72,7.07,{"$f":"VLOOKUP(W36,[2]Feuil1!$A$1:$G$65536,7,0)","v":-2.54}]
[null,null,null,null,null,null,null,null,null,null,null,null,null,null,null,null,null,null,null,null,null,null,"FA00096","LITIERES POUR ANIMAUX",-1.34,-0.66,2.63,{"$f":"VLOOKUP(W37,[2]Feuil1!$A$1:$G$65536,7,0)","v":-2.96}]
[null,null,null,null,null,null,null,null,null,null,null,null,null,null,null,null,null,null,null,null,null,null,"FA00082","Légumes surgelés",-1.36,-0.49,0.41,{"$f":"VLOOKUP(W38,[2]Feuil1!$A$1:$G$65536,7,0)","v":-3.34}]
[null,null,null,null,null,null,null,null,null,null,null,null,null,null,null,null,null,null,null,null,null,null,"FA00087","Traiteur libre service",-1.46,-0.84,-0.37,{"$f":"VLOOKUP(W39,[2]Feuil1!$A$1:$G$65536,7,0)","v":-1.89}]
[null,null,null,null,null,null,null,null,null,null,null,null,null,null,null,null,null,null,null,null,null,null,"FA00029","Chicorée,chic+caf,cafe solu",-1.47,0.52,1.2,{"$f":"VLOOKUP(W40,[2]Feuil1!$A$1:$G$65536,7,0)","v":-2.25}]
[null,null,null,null,null,null,null,null,null,null,null,null,null,null,null,null,null,null,null,null,null,null,"FA00027","Pate A tartiner",-1.52,-0.1,-7.0000000000000007E-2,{"$f":"VLOOKUP(W41,[2]Feuil1!$A$1:$G$65536,7,0)","v":-2.33}]
[null,null,null,null,null,null,null,null,null,null,null,null,null,null,null,null,null,null,null,null,null,null,"FA00003","Conserves de poissons",-1.54,-0.6,0.89,{"$f":"VLOOKUP(W42,[2]Feuil1!$A$1:$G$65536,7,0)","v":-2.13}]
[null,null,null,null,null,null,null,null,null,null,null,null,null,null,null,null,null,null,null,null,null,null,"FA00321","Protections incontinence adultes",-1.54,1.87,0,{"$f":"VLOOKUP(W43,[2]Feuil1!$A$1:$G$65536,7,0)","v":-4.95}]
[null,null,null,null,null,null,null,null,null,null,null,null,null,null,null,null,null,null,null,null,null,null,"FA00076","Beurre,margarine,creme frai",-1.57,0.02,0.64,{"$f":"VLOOKUP(W44,[2]Feuil1!$A$1:$G$65536,7,0)","v":-2.42}]
[null,null,null,null,null,null,null,null,null,null,null,null,null,null,null,null,null,null,null,null,null,null,"FA00041","Jus, nectar fruit,legume",-1.64,0.9,-0.05,{"$f":"VLOOKUP(W45,[2]Feuil1!$A$1:$G$65536,7,0)","v":-4.96}]
[null,null,null,null,null,null,null,null,null,null,null,null,null,null,null,null,null,null,null,null,null,null,"FA00057","Parapharmacie",-1.69,-0.34,-0.55000000000000004,{"$f":"VLOOKUP(W46,[2]Feuil1!$A$1:$G$65536,7,0)","v":-1.99}]
[null,null,null,null,null,null,null,null,null,null,null,null,null,null,null,null,null,null,null,null,null,null,"FA00036","Confiserie de sucre",-1.7,1.28,0.39,{"$f":"VLOOKUP(W47,[2]Feuil1!$A$1:$G$65536,7,0)","v":-2.37}]
[null,null,null,null,null,null,null,null,null,null,null,null,null,null,null,null,null,null,null,null,null,null,"FA00009","Potages,bouill,aide culinai",-1.79,2.56,0.94,{"$f":"VLOOKUP(W48,[2]Feuil1!$A$1:$G$65536,7,0)","v":-2.63}]
[null,null,null,null,null,null,null,null,null,null,null,null,null,null,null,null,null,null,null,null,null,null,"FA00032","Miel, confiture, compote",-1.86,0.15,1.66,{"$f":"VLOOKUP(W49,[2]Feuil1!$A$1:$G$65536,7,0)","v":-3.22}]
[null,null,null,null,null,null,null,null,null,null,null,null,null,null,null,null,null,null,null,null,null,null,"FA00063","Essuie tout",-1.93,0.38,-1,{"$f":"VLOOKUP(W50,[2]Feuil1!$A$1:$G$65536,7,0)","v":-4.49}]
[null,null,null,null,null,null,null,null,null,null,null,null,null,null,null,null,null,null,null,null,null,null,"FA00019","Aide patisserie, desserts",-1.97,-0.63,-0.77,{"$f":"VLOOKUP(W51,[2]Feuil1!$A$1:$G$65536,7,0)","v":-2.2200000000000002}]
[null,null,null,null,null,null,null,null,null,null,null,null,null,null,null,null,null,null,null,null,null,null,"FA00084","Surgelés sucrés",-1.99,0.69,1.86,{"$f":"VLOOKUP(W52,[2]Feuil1!$A$1:$G$65536,7,0)","v":-4.01}]
[null,null,null,null,null,null,null,null,null,null,null,null,null,null,null,null,null,null,null,null,null,null,"FA00066","Eponges, tampons A récurer",-2,-0.13,-4.12,{"$f":"VLOOKUP(W53,[2]Feuil1!$A$1:$G$65536,7,0)","v":-2.79}]
[null,null,null,null,null,null,null,null,null,null,null,null,null,null,null,null,null,null,null,null,null,null,"FA00071","Lessives, savons de ménage",-2.0099999999999998,-0.13,-4.7699999999999996,{"$f":"VLOOKUP(W54,[2]Feuil1!$A$1:$G$65536,7,0)","v":-2.56}]
[null,null,null,null,null,null,null,null,null,null,null,null,null,null,null,null,null,null,null,null,null,null,"FA00013","Sauces, prép condimentaires",-2.06,0.3,1.06,{"$f":"VLOOKUP(W55,[2]Feuil1!$A$1:$G$65536,7,0)","v":-3.06}]
[null,null,null,null,null,null,null,null,null,null,null,null,null,null,null,null,null,null,null,null,null,null,"FA00020","Biscuits sucrés",-2.06,0.66,2.93,{"$f":"VLOOKUP(W56,[2]Feuil1!$A$1:$G$65536,7,0)","v":-3.85}]
[null,null,null,null,null,null,null,null,null,null,null,null,null,null,null,null,null,null,null,null,null,null,"FA00086","Pates fraIches",-2.0699999999999998,-0.24,1.43,{"$f":"VLOOKUP(W57,[2]Feuil1!$A$1:$G$65536,7,0)","v":-3.25}]
[null,null,null,null,null,null,null,null,null,null,null,null,null,null,null,null,null,null,null,null,null,null,"FA00021","Patisserie industrielle",-2.09,0.77,4.21,{"$f":"VLOOKUP(W58,[2]Feuil1!$A$1:$G$65536,7,0)","v":-3.88}]
[null,null,null,null,null,null,null,null,null,null,null,null,null,null,null,null,null,null,null,null,null,null,"FA00070","Cirage, entret,teintu cuir",-2.12,0.66,null,{"$f":"VLOOKUP(W59,[2]Feuil1!$A$1:$G$65536,7,0)","v":-2.2599999999999998}]
[null,null,null,null,null,null,null,null,null,null,null,null,null,null,null,null,null,null,null,null,null,null,"FA00035","Confiserie de chocolat",-2.17,1.64,-0.61,{"$f":"VLOOKUP(W60,[2]Feuil1!$A$1:$G$65536,7,0)","v":-2.69}]
[null,null,null,null,null,null,null,null,null,null,null,null,null,null,null,null,null,null,null,null,null,null,"FA00042","Bière, boisson base bière",-2.17,0.68,0.06,{"$f":"VLOOKUP(W61,[2]Feuil1!$A$1:$G$65536,7,0)","v":-2.46}]
[null,null,null,null,null,null,null,null,null,null,null,null,null,null,null,null,null,null,null,null,null,null,"FA00034","Chocolat en tablette",-2.19,-0.46,0.8,{"$f":"VLOOKUP(W62,[2]Feuil1!$A$1:$G$65536,7,0)","v":-2.93}]
[null,null,null,null,null,null,null,null,null,null,null,null,null,null,null,null,null,null,null,null,null,null,"FA00040","Boisson rafraich ss alcool",-2.21,1.32,0.86,{"$f":"VLOOKUP(W63,[2]Feuil1!$A$1:$G$65536,7,0)","v":-3.36}]
[null,null,null,null,null,null,null,null,null,null,null,null,null,null,null,null,null,null,null,null,null,null,"FA00320","Changes complets, couches,culottes absorbantes bebes",-2.21,-1.76,-1.29,{"$f":"VLOOKUP(W64,[2]Feuil1!$A$1:$G$65536,7,0)","v":-2.66}]
[null,null,null,null,null,null,null,null,null,null,null,null,null,null,null,null,null,null,null,null,null,null,"FA00092","Supports Informatiques",-2.2200000000000002,1.7,-3.13,{"$f":"VLOOKUP(W65,[2]Feuil1!$A$1:$G$65536,7,0)","v":-3.03}]
[null,null,null,null,null,null,null,null,null,null,null,null,null,null,null,null,null,null,null,null,null,null,"FA00097","Huile moteur",-2.25,-2.88,-0.11,{"$f":"VLOOKUP(W66,[2]Feuil1!$A$1:$G$65536,7,0)","v":-2.1}]
[null,null,null,null,null,null,null,null,null,null,null,null,null,null,null,null,null,null,null,null,null,null,"FA00058","Hygiène fèminine",-2.29,-0.98,0.65,{"$f":"VLOOKUP(W67,[2]Feuil1!$A$1:$G$65536,7,0)","v":-2.98}]
[null,null,null,null,null,null,null,null,null,null,null,null,null,null,null,null,null,null,null,null,null,null,"FA00074","Yaourt,dessert lac,froma bl",-2.33,-0.16,0.86,{"$f":"VLOOKUP(W68,[2]Feuil1!$A$1:$G$65536,7,0)","v":-3.83}]
[null,null,null,null,null,null,null,null,null,null,null,null,null,null,null,null,null,null,null,null,null,null,"FA00004","Légumes en conserve",-2.36,-0.71,2.93,{"$f":"VLOOKUP(W69,[2]Feuil1!$A$1:$G$65536,7,0)","v":-4.38}]
[null,null,null,null,null,null,null,null,null,null,null,null,null,null,null,null,null,null,null,null,null,null,"FA00067","Emballage ménag,filtre café",-2.44,-1.42,0.69,{"$f":"VLOOKUP(W70,[2]Feuil1!$A$1:$G$65536,7,0)","v":-3.86}]
[null,null,null,null,null,null,null,null,null,null,null,null,null,null,null,null,null,null,null,null,null,null,"FA00050","Rasage, aprés rasage",-2.4500000000000002,-0.18,-2.38,{"$f":"VLOOKUP(W71,[2]Feuil1!$A$1:$G$65536,7,0)","v":-2.89}]
[null,null,null,null,null,null,null,null,null,null,null,null,null,null,null,null,null,null,null,null,null,null,"FA00072","Assouplissant, entret linge",-2.4500000000000002,0.12,-2.63,{"$f":"VLOOKUP(W72,[2]Feuil1!$A$1:$G$65536,7,0)","v":-3.35}]
[null,null,null,null,null,null,null,null,null,null,null,null,null,null,null,null,null,null,null,null,null,null,"FA00022","Produits apéritifs, chips",-2.56,-0.69,1.41,{"$f":"VLOOKUP(W73,[2]Feuil1!$A$1:$G$65536,7,0)","v":-3.87}]
[null,null,null,null,null,null,null,null,null,null,null,null,null,null,null,null,null,null,null,null,null,null,"FA00060","Coton",-2.6,-1.34,-5.0599999999999996,{"$f":"VLOOKUP(W74,[2]Feuil1!$A$1:$G$65536,7,0)","v":-4.3099999999999996}]
[null,null,null,null,null,null,null,null,null,null,null,null,null,null,null,null,null,null,null,null,null,null,"FA00054","Savon, bain, douche adu+bb",-2.72,0.18,5.98,{"$f":"VLOOKUP(W75,[2]Feuil1!$A$1:$G$65536,7,0)","v":-3.58}]
[null,null,null,null,null,null,null,null,null,null,null,null,null,null,null,null,null,null,null,null,null,null,"FA00065","Nettoyants ménager, débouch",-2.73,-0.48,-0.4,{"$f":"VLOOKUP(W76,[2]Feuil1!$A$1:$G$65536,7,0)","v":-3.55}]
[null,null,null,null,null,null,null,null,null,null,null,null,null,null,null,null,null,null,null,null,null,null,"FA00015","Aliments chiens et chats",-2.84,0.42,1.61,{"$f":"VLOOKUP(W77,[2]Feuil1!$A$1:$G$65536,7,0)","v":-4.17}]
[null,null,null,null,null,null,null,null,null,null,null,null,null,null,null,null,null,null,null,null,null,null,"FA00025","Poudres petits déjeuners",-2.86,-0.49,0.75,{"$f":"VLOOKUP(W78,[2]Feuil1!$A$1:$G$65536,7,0)","v":-3.53}]
[null,null,null,null,null,null,null,null,null,null,null,null,null,null,null,null,null,null,null,null,null,null,"FA00028","Thés et infusions",-2.9,0.08,-0.19,{"$f":"VLOOKUP(W79,[2]Feuil1!$A$1:$G$65536,7,0)","v":-3.7}]
[null,null,null,null,null,null,null,null,null,null,null,null,null,null,null,null,null,null,null,null,null,null,"FA00006","Riz",-3.21,-1.72,0.36,{"$f":"VLOOKUP(W80,[2]Feuil1!$A$1:$G$65536,7,0)","v":-4.21}]
[null,null,null,null,null,null,null,null,null,null,null,null,null,null,null,null,null,null,null,null,null,null,"FA00008","Farines, farineux, semoules",-3.21,-2.97,-3.98,{"$f":"VLOOKUP(W81,[2]Feuil1!$A$1:$G$65536,7,0)","v":-3.28}]
[null,null,null,null,null,null,null,null,null,null,null,null,null,null,null,null,null,null,null,null,null,null,"FA00031","Sucres et édulcorants",-3.23,-0.79,-2.97,{"$f":"VLOOKUP(W82,[2]Feuil1!$A$1:$G$65536,7,0)","v":-3.57}]
[null,null,null,null,null,null,null,null,null,null,null,null,null,null,null,null,null,null,null,null,null,null,"FA00007","Pates alimentaires",-3.24,-1.71,-2.09,{"$f":"VLOOKUP(W83,[2]Feuil1!$A$1:$G$65536,7,0)","v":-3.98}]
[null,null,null,null,null,null,null,null,null,null,null,null,null,null,null,null,null,null,null,null,null,null,"FA00026","Céréales",-3.25,-0.74,-0.7,{"$f":"VLOOKUP(W84,[2]Feuil1!$A$1:$G$65536,7,0)","v":-4.66}]
[null,null,null,null,null,null,null,null,null,null,null,null,null,null,null,null,null,null,null,null,null,null,"FA00064","Prod vaisselle main,machine",-3.26,0.28000000000000003,2.06,{"$f":"VLOOKUP(W85,[2]Feuil1!$A$1:$G$65536,7,0)","v":-5.18}]
[null,null,null,null,null,null,null,null,null,null,null,null,null,null,null,null,null,null,null,null,null,null,"FA00052","Soins corps, visage adu+bb",-3.42,-2.66,1.51,{"$f":"VLOOKUP(W86,[2]Feuil1!$A$1:$G$65536,7,0)","v":-3.55}]
[null,null,null,null,null,null,null,null,null,null,null,null,null,null,null,null,null,null,null,null,null,null,"FA00023","Panification sèche",-3.53,-0.49,0.08,{"$f":"VLOOKUP(W87,[2]Feuil1!$A$1:$G$65536,7,0)","v":-5.2}]
[null,null,null,null,null,null,null,null,null,null,null,null,null,null,null,null,null,null,null,null,null,null,"FA00017","Produits diététiques",-3.57,-1.62,4.74,{"$f":"VLOOKUP(W88,[2]Feuil1!$A$1:$G$65536,7,0)","v":-3.78}]
[null,null,null,null,null,null,null,null,null,null,null,null,null,null,null,null,null,null,null,null,null,null,"FA00061","Mouchoirs papier, lingettes",-3.57,-2.17,-1.59,{"$f":"VLOOKUP(W89,[2]Feuil1!$A$1:$G$65536,7,0)","v":-4.6500000000000004}]
[null,null,null,null,null,null,null,null,null,null,null,null,null,null,null,null,null,null,null,null,null,null,"FA00055","Hygiène dentaire",-3.66,-1.37,0.33,{"$f":"VLOOKUP(W90,[2]Feuil1!$A$1:$G$65536,7,0)","v":-4.09}]
[null,null,null,null,null,null,null,null,null,null,null,null,null,null,null,null,null,null,null,null,null,null,"FA00030","Café torréfié",-3.73,-1.91,-0.85,{"$f":"VLOOKUP(W91,[2]Feuil1!$A$1:$G$65536,7,0)","v":-4.34}]
[null,null,null,null,null,null,null,null,null,null,null,null,null,null,null,null,null,null,null,null,null,null,"FA00037","Chewing gum",-3.88,5.56,0.02,{"$f":"VLOOKUP(W92,[2]Feuil1!$A$1:$G$65536,7,0)","v":-4.03}]
[null,null,null,null,null,null,null,null,null,null,null,null,null,null,null,null,null,null,null,null,null,null,"FA00091","GANTS DE MENAGE JETABLES",-3.88,-1.01,-14.31,{"$f":"VLOOKUP(W93,[2]Feuil1!$A$1:$G$65536,7,0)","v":-5.55}]
[null,null,null,null,null,null,null,null,null,null,null,null,null,null,null,null,null,null,null,null,null,null,"FA00051","Déodorant,parfum,edt adu+bb",-4.0999999999999996,-6.49,-0.19,{"$f":"VLOOKUP(W94,[2]Feuil1!$A$1:$G$65536,7,0)","v":-3.88}]
[null,null,null,null,null,null,null,null,null,null,null,null,null,null,null,null,null,null,null,null,null,null,"FA00056","Produits capillaires",-4.1100000000000003,-0.48,1.0900000000000001,{"$f":"VLOOKUP(W95,[2]Feuil1!$A$1:$G$65536,7,0)","v":-4.67}]
[null,null,null,null,null,null,null,null,null,null,null,null,null,null,null,null,null,null,null,null,null,null,"FA00024","Lait poudre,concentré adult",-4.3099999999999996,-1.47,-5.45,{"$f":"VLOOKUP(W96,[2]Feuil1!$A$1:$G$65536,7,0)","v":-4.82}]
[null,null,null,null,null,null,null,null,null,null,null,null,null,null,null,null,null,null,null,null,null,null,"FA00093","Petit électroménager",-4.45,-4.8899999999999997,-3.49,{"$f":"VLOOKUP(W97,[2]Feuil1!$A$1:$G$65536,7,0)","v":-4.42}]
[null,null,null,null,null,null,null,null,null,null,null,null,null,null,null,null,null,null,null,null,null,null,"FA00016","Aliments infantiles",-5.51,-2.67,null,{"$f":"VLOOKUP(W98,[2]Feuil1!$A$1:$G$65536,7,0)","v":-5.8}]
[null,null,null,null,null,null,null,null,null,null,null,null,null,null,null,null,null,null,null,null,null,null,"FA00088","Panification industr fraIc",-5.57,-2.86,-2.0299999999999998,{"$f":"VLOOKUP(W99,[2]Feuil1!$A$1:$G$65536,7,0)","v":-7.4}]
[null,null,null,null,null,null,null,null,null,null,null,null,null,null,null,null,null,null,null,null,null,null,"FA00038","Eaux",-6.22,0.98,-0.69,{"$f":"VLOOKUP(W100,[2]Feuil1!$A$1:$G$65536,7,0)","v":-8.09}]

{"sheet":"Familles Moins","index":5,"n_rows":100,"n_cols":28,"rows_kept":100,"cut":false,"hidden":false,"merged":[[13,1,13,3]]}
["Observatoire des prix et des marges",null,null,null,null,null,null,null,null,null,null,null,null,null,null,null,null,null,null,null,null,null,"grprd","Fam/ray","Exhaustif","MDD","PPX","mfab"]
[null,null,null,null,null,null,null,null,null,null,null,null,null,null,null,null,null,null,null,null,null,null,"FA00038","Eaux",-6.22,0.98,-0.69,{"$f":"VLOOKUP(W2,[2]Feuil1!$A$1:$G$65536,7,0)","v":-8.09}]
["Produits de grande consommation – Grande distribution",null,null,null,null,null,null,null,null,null,null,null,null,null,null,null,null,null,"EXHAUSTIF","MDD","PPX","MFAB","FA00088","Panification industr fraIc",-5.57,-2.86,-2.0299999999999998,{"$f":"VLOOKUP(W3,[2]Feuil1!$A$1:$G$65536,7,0)","v":-7.4}]
[null,null,null,null,null,null,null,null,null,null,null,null,null,null,null,null,null,null,null,null,null,null,"FA00016","Aliments infantiles",-5.51,-2.67,null,{"$f":"VLOOKUP(W4,[2]Feuil1!$A$1:$G$65536,7,0)","v":-5.8}]
[null,null,null,null,null,null,null,null,null,null,null,null,null,null,null,null,null,"Eaux",-6.22,0.98,-0.69,-8.09,"FA00093","Petit électroménager",-4.45,-4.8899999999999997,-3.49,{"$f":"VLOOKUP(W5,[2]Feuil1!$A$1:$G$65536,7,0)","v":-4.42}]
[null,null,null,null,null,null,null,null,null,null,null,null,null,null,null,null,null,"Panification industr fraIc",-5.57,-2.86,-2.0299999999999998,-7.4,"FA00024","Lait poudre,concentré adult",-4.3099999999999996,-1.47,-5.45,{"$f":"VLOOKUP(W6,[2]Feuil1!$A$1:$G$65536,7,0)","v":-4.82}]
[null,null,null,null,null,null,null,null,null,null,null,null,null,null,null,null,null,"Aliments infantiles",-5.51,-2.67,null,-5.8,"FA00056","Produits capillaires",-4.1100000000000003,-0.48,1.0900000000000001,{"$f":"VLOOKUP(W7,[2]Feuil1!$A$1:$G$65536,7,0)","v":-4.67}]
[null,null,null,null,null,null,null,null,null,null,null,null,null,null,null,null,null,"Petit électroménager",-4.45,-4.8899999999999997,-3.49,-4.42,"FA00051","Déodorant,parfum,edt adu+bb",-4.0999999999999996,-6.49,-0.19,{"$f":"VLOOKUP(W8,[2]Feuil1!$A$1:$G$65536,7,0)","v":-3.88}]
[null,null,null,null,null,null,null,null,null,null,null,null,null,null,null,null,null,"Lait poudre,concentré adult",-4.3099999999999996,-1.47,-5.45,-4.82,"FA00037","Chewing gum",-3.88,5.56,0.02,{"$f":"VLOOKUP(W9,[2]Feuil1!$A$1:$G$65536,7,0)","v":-4.03}]
[null,null,null,null,null,null,null,null,null,null,null,null,null,null,null,null,null,"Produits capillaires",-4.1100000000000003,-0.48,1.0900000000000001,-4.67,"FA00091","GANTS DE MENAGE JETABLES",-3.88,-1.01,-14.31,{"$f":"VLOOKUP(W10,[2]Feuil1!$A$1:$G$65536,7,0)","v":-5.55}]
[null,null,null,null,null,null,null,null,null,null,null,null,null,null,null,null,null,"Déodorant,parfum,edt adu+bb",-4.0999999999999996,-6.49,-0.19,-3.88,"FA00030","Café torréfié",-3.73,-1.91,-0.85,{"$f":"VLOOKUP(W11,[2]Feuil1!$A$1:$G$65536,7,0)","v":-4.34}]
[null,null,null,null,null,null,null,null,null,null,null,null,null,null,null,null,null,"Chewing gum",-3.88,5.56,0.02,-4.03,"FA00055","Hygiène dentaire",-3.66,-1.37,0.33,{"$f":"VLOOKUP(W12,[2]Feuil1!$A$1:$G$65536,7,0)","v":-4.09}]
[null,null,null,null,null,null,null,null,null,null,null,null,null,null,null,null,null,"Gants de ménage jetables",-3.88,-1.01,-14.31,-5.55,"FA00017","Produits diététiques",-3.57,-1.62,4.74,{"$f":"VLOOKUP(W13,[2]Feuil1!$A$1:$G$65536,7,0)","v":-3.78}]
[null,null,null,null,null,"EXHAUSTIF",null,"MARQUES FABRICANTS",null,"MDD",null,"PPX",null,null,null,null,null,"Café torréfié",-3.73,-1.91,-0.85,-4.34,"FA00061","Mouchoirs papier, lingettes",-3.57,-2.17,-1.59,{"$f":"VLOOKUP(W14,[2]Feuil1!$A$1:$G$65536,7,0)","v":-4.6500000000000004}]
[null,{"$f":"+R5","v":"Eaux"},null,null,null,{"$f":"+S5","v":-6.22},null,-8.09,null,{"$f":"+T5","v":0.98},null,{"$f":"+U5","v":-0.69},null,null,null,null,null,null,null,null,null,null,"FA00023","Panification sèche",-3.53,-0.49,0.08,{"$f":"VLOOKUP(W15,[2]Feuil1!$A$1:$G$65536,7,0)","v":-5.2}]
[null,"Panification industr fraIc",null,null,null,-5.57,null,-7.4,null,-2.86,null,-2.0299999999999998,null,null,null,null,null,null,null,null,null,null,"FA00052","Soins corps, visage adu+bb",-3.42,-2.66,1.51,{"$f":"VLOOKUP(W16,[2]Feuil1!$A$1:$G$65536,7,0)","v":-3.55}]
[null,"Aliments infantiles",null,null,null,-5.51,null,-5.8,null,-2.67,null,0,null,null,null,null,null,null,null,null,null,null,"FA00064","Prod vaisselle main,machine",-3.26,0.28000000000000003,2.06,{"$f":"VLOOKUP(W17,[2]Feuil1!$A$1:$G$65536,7,0)","v":-5.18}]
[null,"Petit électroménager",null,null,null,-4.45,null,-4.42,null,-4.8899999999999997,null,-3.49,null,null,null,null,null,null,null,null,null,null,"FA00026","Céréales",-3.25,-0.74,-0.7,{"$f":"VLOOKUP(W18,[2]Feuil1!$A$1:$G$65536,7,0)","v":-4.66}]
[null,"Lait poudre,concentré adult",null,null,null,-4.3099999999999996,null,-4.82,null,-1.47,null,-5.45,null,null,null,null,null,null,null,null,null,null,"FA00007","Pates alimentaires",-3.24,-1.71,-2.09,{"$f":"VLOOKUP(W19,[2]Feuil1!$A$1:$G$65536,7,0)","v":-3.98}]
[null,"Produits capillaires",null,null,null,-4.1100000000000003,null,-4.67,null,-0.48,null,1.0900000000000001,null,null,null,null,null,null,null,null,null,null,"FA00031","Sucres et édulcorants",-3.23,-0.79,-2.97,{"$f":"VLOOKUP(W20,[2]Feuil1!$A$1:$G$65536,7,0)","v":-3.57}]
[null,"Déodorant,parfum,edt adu+bb",null,null,null,-4.0999999999999996,null,-3.88,null,-6.49,null,-0.19,null,null,null,null,null,null,null,null,null,null,"FA00006","Riz",-3.21,-1.72,0.36,{"$f":"VLOOKUP(W21,[2]Feuil1!$A$1:$G$65536,7,0)","v":-4.21}]
[null,"Chewing gum",null,null,null,-3.88,null,-4.03,null,5.56,null,0.02,null,null,null,null,null,null,null,null,null,null,"FA00008","Farines, farineux, semoules",-3.21,-2.97,-3.98,{"$f":"VLOOKUP(W22,[2]Feuil1!$A$1:$G$65536,7,0)","v":-3.28}]
[null,"Gants de ménage jetables",null,null,null,-3.88,null,-5.55,null,-1.01,null,-14.31,null,null,null,null,null,null,null,null,null,null,"FA00028","Thés et infusions",-2.9,0.08,-0.19,{"$f":"VLOOKUP(W23,[2]Feuil1!$A$1:$G$65536,7,0)","v":-3.7}]
[null,"Café torréfié",null,null,null,-3.73,null,-4.34,null,-1.91,null,-0.85,null,null,null,null,null,null,null,null,null,null,"FA00025","Poudres petits déjeuners",-2.86,-0.49,0.75,{"$f":"VLOOKUP(W24,[2]Feuil1!$A$1:$G$65536,7,0)","v":-3.53}]
[null,null,null,null,null,null,null,null,null,null,null,null,null,null,null,null,null,null,null,null,null,null,"FA00015","Aliments chiens et chats",-2.84,0.42,1.61,{"$f":"VLOOKUP(W25,[2]Feuil1!$A$1:$G$65536,7,0)","v":-4.17}]
[null,"Leaders : 7 000 produits détenus par + 40 % des magasins en France.",null,null,null,null,null,null,null,null,null,null,null,null,null,null,null,null,null,null,null,null,"FA00065","Nettoyants ménager, débouch",-2.73,-0.48,-0.4,{"$f":"VLOOKUP(W26,[2]Feuil1!$A$1:$G$65536,7,0)","v":-3.55}]
[null,"Plus Grandes Marques = \"Majeurs\": les références des marques majeures par catégories de produits.",null,null,null,null,null,null,null,null,null,null,null,null,null,null,null,null,null,null,null,null,"FA00054","Savon, bain, douche adu+bb",-2.72,0.18,5.98,{"$f":"VLOOKUP(W27,[2]Feuil1!$A$1:$G$65536,7,0)","v":-3.58}]
[null,null,null,null,null,null,null,null,null,null,null,null,null,null,null,null,null,null,null,null,null,null,"FA00060","Coton",-2.6,-1.34,-5.0599999999999996,{"$f":"VLOOKUP(W28,[2]Feuil1!$A$1:$G$65536,7,0)","v":-4.3099999999999996}]
[null,null,null,null,null,null,null,null,null,null,null,null,null,null,null,null,null,null,null,null,null,null,"FA00022","Produits apéritifs, chips",-2.56,-0.69,1.41,{"$f":"VLOOKUP(W29,[2]Feuil1!$A$1:$G$65536,7,0)","v":-3.87}]
[null,null,null,null,null,null,null,null,null,null,null,null,null,null,null,null,null,null,null,null,null,null,"FA00050","Rasage, aprés rasage",-2.4500000000000002,-0.18,-2.38,{"$f":"VLOOKUP(W30,[2]Feuil1!$A$1:$G$65536,7,0)","v":-2.89}]
[null,null,null,null,null,null,null,null,null,null,null,null,null,null,null,null,null,null,null,null,null,null,"FA00072","Assouplissant, entret linge",-2.4500000000000002,0.12,-2.63,{"$f":"VLOOKUP(W31,[2]Feuil1!$A$1:$G$65536,7,0)","v":-3.35}]
[null,null,null,null,null,null,null,null,null,null,null,null,null,null,null,null,null,null,null,null,null,null,"FA00067","Emballage ménag,filtre café",-2.44,-1.42,0.69,{"$f":"VLOOKUP(W32,[2]Feuil1!$A$1:$G$65536,7,0)","v":-3.86}]
[null,null,null,null,null,null,null,null,null,null,null,null,null,null,null,null,null,null,null,null,null,null,"FA00004","Légumes en conserve",-2.36,-0.71,2.93,{"$f":"VLOOKUP(W33,[2]Feuil1!$A$1:$G$65536,7,0)","v":-4.38}]
[null,null,null,null,null,null,null,null,null,null,null,null,null,null,null,null,null,null,null,null,null,null,"FA00074","Yaourt,dessert lac,froma bl",-2.33,-0.16,0.86,{"$f":"VLOOKUP(W34,[2]Feuil1!$A$1:$G$65536,7,0)","v":-3.83}]
[null,null,null,null,null,null,null,null,null,null,null,null,null,null,null,null,null,null,null,null,null,null,"FA00058","Hygiène fèminine",-2.29,-0.98,0.65,{"$f":"VLOOKUP(W35,[2]Feuil1!$A$1:$G$65536,7,0)","v":-2.98}]
[null,null,null,null,null,null,null,null,null,null,null,null,null,null,null,null,null,null,null,null,null,null,"FA00097","Huile moteur",-2.25,-2.88,-0.11,{"$f":"VLOOKUP(W36,[2]Feuil1!$A$1:$G$65536,7,0)","v":-2.1}]
[null,null,null,null,null,null,null,null,null,null,null,null,null,null,null,null,null,null,null,null,null,null,"FA00092","Supports Informatiques",-2.2200000000000002,1.7,-3.13,{"$f":"VLOOKUP(W37,[2]Feuil1!$A$1:$G$65536,7,0)","v":-3.03}]
[null,null,null,null,null,null,null,null,null,null,null,null,null,null,null,null,null,null,null,null,null,null,"FA00040","Boisson rafraich ss alcool",-2.21,1.32,0.86,{"$f":"VLOOKUP(W38,[2]Feuil1!$A$1:$G$65536,7,0)","v":-3.36}]
[null,null,null,null,null,null,null,null,null,null,null,null,null,null,null,null,null,null,null,null,null,null,"FA00320","Changes complets, couches,culottes absorbantes bebes",-2.21,-1.76,-1.29,{"$f":"VLOOKUP(W39,[2]Feuil1!$A$1:$G$65536,7,0)","v":-2.66}]
[null,null,null,null,null,null,null,null,null,null,null,null,null,null,null,null,null,null,null,null,null,null,"FA00034","Chocolat en tablette",-2.19,-0.46,0.8,{"$f":"VLOOKUP(W40,[2]Feuil1!$A$1:$G$65536,7,0)","v":-2.93}]
[null,null,null,null,null,null,null,null,null,null,null,null,null,null,null,null,null,null,null,null,null,null,"FA00035","Confiserie de chocolat",-2.17,1.64,-0.61,{"$f":"VLOOKUP(W41,[2]Feuil1!$A$1:$G$65536,7,0)","v":-2.69}]
[null,null,null,null,null,null,null,null,null,null,null,null,null,null,null,null,null,null,null,null,null,null,"FA00042","Bière, boisson base bière",-2.17,0.68,0.06,{"$f":"VLOOKUP(W42,[2]Feuil1!$A$1:$G$65536,7,0)","v":-2.46}]
[null,null,null,null,null,null,null,null,null,null,null,null,null,null,null,null,null,null,null,null,null,null,"FA00070","Cirage, entret,teintu cuir",-2.12,0.66,null,{"$f":"VLOOKUP(W43,[2]Feuil1!$A$1:$G$65536,7,0)","v":-2.2599999999999998}]
[null,null,null,null,null,null,null,null,null,null,null,null,null,null,null,null,null,null,null,null,null,null,"FA00021","Patisserie industrielle",-2.09,0.77,4.21,{"$f":"VLOOKUP(W44,[2]Feuil1!$A$1:$G$65536,7,0)","v":-3.88}]
[null,null,null,null,null,null,null,null,null,null,null,null,null,null,null,null,null,null,null,null,null,null,"FA00086","Pates fraIches",-2.0699999999999998,-0.24,1.43,{"$f":"VLOOKUP(W45,[2]Feuil1!$A$1:$G$65536,7,0)","v":-3.25}]
[null,null,null,null,null,null,null,null,null,null,null,null,null,null,null,null,null,null,null,null,null,null,"FA00013","Sauces, prép condimentaires",-2.06,0.3,1.06,{"$f":"VLOOKUP(W46,[2]Feuil1!$A$1:$G$65536,7,0)","v":-3.06}]
[null,null,null,null,null,null,null,null,null,null,null,null,null,null,null,null,null,null,null,null,null,null,"FA00020","Biscuits sucrés",-2.06,0.66,2.93,{"$f":"VLOOKUP(W47,[2]Feuil1!$A$1:$G$65536,7,0)","v":-3.85}]
[null,null,null,null,null,null,null,null,null,null,null,null,null,null,null,null,null,null,null,null,null,null,"FA00071","Lessives, savons de ménage",-2.0099999999999998,-0.13,-4.7699999999999996,{"$f":"VLOOKUP(W48,[2]Feuil1!$A$1:$G$65536,7,0)","v":-2.56}]
[null,null,null,null,null,null,null,null,null,null,null,null,null,null,null,null,null,null,null,null,null,null,"FA00066","Eponges, tampons A récurer",-2,-0.13,-4.12,{"$f":"VLOOKUP(W49,[2]Feuil1!$A$1:$G$65536,7,0)","v":-2.79}]
[null,null,null,null,null,null,null,null,null,null,null,null,null,null,null,null,null,null,null,null,null,null,"FA00084","Surgelés sucrés",-1.99,0.69,1.86,{"$f":"VLOOKUP(W50,[2]Feuil1!$A$1:$G$65536,7,0)","v":-4.01}]
[null,null,null,null,null,null,null,null,null,null,null,null,null,null,null,null,null,null,null,null,null,null,"FA00019","Aide patisserie, desserts",-1.97,-0.63,-0.77,{"$f":"VLOOKUP(W51,[2]Feuil1!$A$1:$G$65536,7,0)","v":-2.2200000000000002}]
[null,null,null,null,null,null,null,null,null,null,null,null,null,null,null,null,null,null,null,null,null,null,"FA00063","Essuie tout",-1.93,0.38,-1,{"$f":"VLOOKUP(W52,[2]Feuil1!$A$1:$G$65536,7,0)","v":-4.49}]
[null,null,null,null,null,null,null,null,null,null,null,null,null,null,null,null,null,null,null,null,null,null,"FA00032","Miel, confiture, compote",-1.86,0.15,1.66,{"$f":"VLOOKUP(W53,[2]Feuil1!$A$1:$G$65536,7,0)","v":-3.22}]
[null,null,null,null,null,null,null,null,null,null,null,null,null,null,null,null,null,null,null,null,null,null,"FA00009","Potages,bouill,aide culinai",-1.79,2.56,0.94,{"$f":"VLOOKUP(W54,[2]Feuil1!$A$1:$G$65536,7,0)","v":-2.63}]
[null,null,null,null,null,null,null,null,null,null,null,null,null,null,null,null,null,null,null,null,null,null,"FA00036","Confiserie de sucre",-1.7,1.28,0.39,{"$f":"VLOOKUP(W55,[2]Feuil1!$A$1:$G$65536,7,0)","v":-2.37}]
[null,null,null,null,null,null,null,null,null,null,null,null,null,null,null,null,null,null,null,null,null,null,"FA00057","Parapharmacie",-1.69,-0.34,-0.55000000000000004,{"$f":"VLOOKUP(W56,[2]Feuil1!$A$1:$G$65536,7,0)","v":-1.99}]
[null,null,null,null,null,null,null,null,null,null,null,null,null,null,null,null,null,null,null,null,null,null,"FA00041","Jus, nectar fruit,legume",-1.64,0.9,-0.05,{"$f":"VLOOKUP(W57,[2]Feuil1!$A$1:$G$65536,7,0)","v":-4.96}]
[null,null,null,null,null,null,null,null,null,null,null,null,null,null,null,null,null,null,null,null,null,null,"FA00076","Beurre,margarine,creme frai",-1.57,0.02,0.64,{"$f":"VLOOKUP(W58,[2]Feuil1!$A$1:$G$65536,7,0)","v":-2.42}]
[null,null,null,null,null,null,null,null,null,null,null,null,null,null,null,null,null,null,null,null,null,null,"FA00003","Conserves de poissons",-1.54,-0.6,0.89,{"$f":"VLOOKUP(W59,[2]Feuil1!$A$1:$G$65536,7,0)","v":-2.13}]
[null,null,null,null,null,null,null,null,null,null,null,null,null,null,null,null,null,null,null,null,null,null,"FA00321","Protections incontinence adultes",-1.54,1.87,0,{"$f":"VLOOKUP(W60,[2]Feuil1!$A$1:$G$65536,7,0)","v":-4.95}]
[null,null,null,null,null,null,null,null,null,null,null,null,null,null,null,null,null,null,null,null,null,null,"FA00027","Pate A tartiner",-1.52,-0.1,-7.0000000000000007E-2,{"$f":"VLOOKUP(W61,[2]Feuil1!$A$1:$G$65536,7,0)","v":-2.33}]
[null,null,null,null,null,null,null,null,null,null,null,null,null,null,null,null,null,null,null,null,null,null,"FA00029","Chicorée,chic+caf,cafe solu",-1.47,0.52,1.2,{"$f":"VLOOKUP(W62,[2]Feuil1!$A$1:$G$65536,7,0)","v":-2.25}]
[null,null,null,null,null,null,null,null,null,null,null,null,null,null,null,null,null,null,null,null,null,null,"FA00087","Traiteur libre service",-1.46,-0.84,-0.37,{"$f":"VLOOKUP(W63,[2]Feuil1!$A$1:$G$65536,7,0)","v":-1.89}]
[null,null,null,null,null,null,null,null,null,null,null,null,null,null,null,null,null,null,null,null,null,null,"FA00082","Légumes surgelés",-1.36,-0.49,0.41,{"$f":"VLOOKUP(W64,[2]Feuil1!$A$1:$G$65536,7,0)","v":-3.34}]
[null,null,null,null,null,null,null,null,null,null,null,null,null,null,null,null,null,null,null,null,null,null,"FA00096","LITIERES POUR ANIMAUX",-1.34,-0.66,2.63,{"$f":"VLOOKUP(W65,[2]Feuil1!$A$1:$G$65536,7,0)","v":-2.96}]
[null,null,null,null,null,null,null,null,null,null,null,null,null,null,null,null,null,null,null,null,null,null,"FA00014","Légumes vinaig, huile, saum",-1.32,0.72,7.07,{"$f":"VLOOKUP(W66,[2]Feuil1!$A$1:$G$65536,7,0)","v":-2.54}]
[null,null,null,null,null,null,null,null,null,null,null,null,null,null,null,null,null,null,null,null,null,null,"FA00089","Vaisselle jetable",-1.29,-0.52,-3.03,{"$f":"VLOOKUP(W67,[2]Feuil1!$A$1:$G$65536,7,0)","v":-2.91}]
[null,null,null,null,null,null,null,null,null,null,null,null,null,null,null,null,null,null,null,null,null,null,"FA00012","Sel, poivre, épices, herbes",-1.18,2.68,3.76,{"$f":"VLOOKUP(W68,[2]Feuil1!$A$1:$G$65536,7,0)","v":-2.08}]
[null,null,null,null,null,null,null,null,null,null,null,null,null,null,null,null,null,null,null,null,null,null,"FA00095","Ampoules électriques",-1.18,-0.33,1.69,{"$f":"VLOOKUP(W69,[2]Feuil1!$A$1:$G$65536,7,0)","v":-1.69}]
[null,null,null,null,null,null,null,null,null,null,null,null,null,null,null,null,null,null,null,null,null,null,"FA00068","Désodorisants d'intérieur",-1.17,0.36,-0.61,{"$f":"VLOOKUP(W70,[2]Feuil1!$A$1:$G$65536,7,0)","v":-1.75}]
[null,null,null,null,null,null,null,null,null,null,null,null,null,null,null,null,null,null,null,null,null,null,"FA00033","Fruits au sirop, au jus",-1.1599999999999999,-0.27,3.69,{"$f":"VLOOKUP(W71,[2]Feuil1!$A$1:$G$65536,7,0)","v":-2.63}]
[null,null,null,null,null,null,null,null,null,null,null,null,null,null,null,null,null,null,null,null,null,null,"FA00062","Papier hygiénique",-1.1599999999999999,-7.0000000000000007E-2,0.51,{"$f":"VLOOKUP(W72,[2]Feuil1!$A$1:$G$65536,7,0)","v":-3.47}]
[null,null,null,null,null,null,null,null,null,null,null,null,null,null,null,null,null,null,null,null,null,null,"FA00010","Huile",-1.1399999999999999,-0.32,-4.2,{"$f":"VLOOKUP(W73,[2]Feuil1!$A$1:$G$65536,7,0)","v":-1.32}]
[null,null,null,null,null,null,null,null,null,null,null,null,null,null,null,null,null,null,null,null,null,null,"FA00069","Insecticides",-1.1100000000000001,-0.04,0.2,{"$f":"VLOOKUP(W74,[2]Feuil1!$A$1:$G$65536,7,0)","v":-1.34}]
[null,null,null,null,null,null,null,null,null,null,null,null,null,null,null,null,null,null,null,null,null,null,"FA00094","Piles",-1.1000000000000001,-1.07,1.6,{"$f":"VLOOKUP(W75,[2]Feuil1!$A$1:$G$65536,7,0)","v":-1.42}]
[null,null,null,null,null,null,null,null,null,null,null,null,null,null,null,null,null,null,null,null,null,null,"FA00077","Oeufs",-1.08,-3.24,-0.04,{"$f":"VLOOKUP(W76,[2]Feuil1!$A$1:$G$65536,7,0)","v":0.26}]
[null,null,null,null,null,null,null,null,null,null,null,null,null,null,null,null,null,null,null,null,null,null,"FA00001","Plats cuisinés",-1.03,0.32,1.87,{"$f":"VLOOKUP(W77,[2]Feuil1!$A$1:$G$65536,7,0)","v":-1.82}]
[null,null,null,null,null,null,null,null,null,null,null,null,null,null,null,null,null,null,null,null,null,null,"FA00073","Charcuterie libre service",-1.01,0.51,-0.67,{"$f":"VLOOKUP(W78,[2]Feuil1!$A$1:$G$65536,7,0)","v":-2.34}]
[null,null,null,null,null,null,null,null,null,null,null,null,null,null,null,null,null,null,null,null,null,null,"FA00090","Bas et collants",-0.91,-1.1299999999999999,-0.51,{"$f":"VLOOKUP(W79,[2]Feuil1!$A$1:$G$65536,7,0)","v":-0.86}]
[null,null,null,null,null,null,null,null,null,null,null,null,null,null,null,null,null,null,null,null,null,null,"FA00011","Vinaigre",-0.79,-0.63,-0.33,{"$f":"VLOOKUP(W80,[2]Feuil1!$A$1:$G$65536,7,0)","v":-1.04}]
[null,null,null,null,null,null,null,null,null,null,null,null,null,null,null,null,null,null,null,null,null,null,"FA00053","Maquillage",-0.63,-1.2,-1,{"$f":"VLOOKUP(W81,[2]Feuil1!$A$1:$G$65536,7,0)","v":-0.56999999999999995}]
[null,null,null,null,null,null,null,null,null,null,null,null,null,null,null,null,null,null,null,null,null,null,"FA00075","Lait",-0.56000000000000005,0.57999999999999996,4.66,{"$f":"VLOOKUP(W82,[2]Feuil1!$A$1:$G$65536,7,0)","v":-1.31}]
[null,null,null,null,null,null,null,null,null,null,null,null,null,null,null,null,null,null,null,null,null,null,"FA00049","Apéritifs sans alcool",-0.49,3.17,-0.65,{"$f":"VLOOKUP(W83,[2]Feuil1!$A$1:$G$65536,7,0)","v":-1.2}]
[null,null,null,null,null,null,null,null,null,null,null,null,null,null,null,null,null,null,null,null,null,null,"FA00039","Sirop,concent,poudre boiss",-0.04,5.17,0.08,{"$f":"VLOOKUP(W84,[2]Feuil1!$A$1:$G$65536,7,0)","v":-2.97}]
[null,null,null,null,null,null,null,null,null,null,null,null,null,null,null,null,null,null,null,null,null,null,"FA00047","Whisky, bourbon",0,1.89,0.36,{"$f":"VLOOKUP(W85,[2]Feuil1!$A$1:$G$65536,7,0)","v":-0.2}]
[null,null,null,null,null,null,null,null,null,null,null,null,null,null,null,null,null,null,null,null,null,null,"FA00083","Viande,volaill,charcut surg",0,0.47,0.52,{"$f":"VLOOKUP(W86,[2]Feuil1!$A$1:$G$65536,7,0)","v":-0.54}]
[null,null,null,null,null,null,null,null,null,null,null,null,null,null,null,null,null,null,null,null,null,null,"FA00078","Fromages",0.05,1.07,1.97,{"$f":"VLOOKUP(W87,[2]Feuil1!$A$1:$G$65536,7,0)","v":-0.56999999999999995}]
[null,null,null,null,null,null,null,null,null,null,null,null,null,null,null,null,null,null,null,null,null,null,"FA00005","Légumes secs et deshydratés",0.09,-1.02,8.15,{"$f":"VLOOKUP(W88,[2]Feuil1!$A$1:$G$65536,7,0)","v":0.4}]
[null,null,null,null,null,null,null,null,null,null,null,null,null,null,null,null,null,null,null,null,null,null,"FA00079","Entrée,pizza,fast food surg",0.09,1.75,-0.5,{"$f":"VLOOKUP(W89,[2]Feuil1!$A$1:$G$65536,7,0)","v":-1.59}]
[null,null,null,null,null,null,null,null,null,null,null,null,null,null,null,null,null,null,null,null,null,null,"FA00080","Plats cuisinés tt prêt surg",0.28000000000000003,1.33,1.37,{"$f":"VLOOKUP(W90,[2]Feuil1!$A$1:$G$65536,7,0)","v":-1.62}]
[null,null,null,null,null,null,null,null,null,null,null,null,null,null,null,null,null,null,null,null,null,null,"FA00081","FRUITS MER, POISSON NAT, PANES, GRENOUILLE ESCARGOT",0.42,1.91,2.09,{"$f":"VLOOKUP(W91,[2]Feuil1!$A$1:$G$65536,7,0)","v":-1.97}]
[null,null,null,null,null,null,null,null,null,null,null,null,null,null,null,null,null,null,null,null,null,null,"FA00085","Saurisserie",0.49,1.64,0.26,{"$f":"VLOOKUP(W92,[2]Feuil1!$A$1:$G$65536,7,0)","v":-0.46}]
[null,null,null,null,null,null,null,null,null,null,null,null,null,null,null,null,null,null,null,null,null,null,"FA00045","Champagne, mousseux",0.51,1.72,2.19,{"$f":"VLOOKUP(W93,[2]Feuil1!$A$1:$G$65536,7,0)","v":-0.04}]
[null,null,null,null,null,null,null,null,null,null,null,null,null,null,null,null,null,null,null,null,null,null,"FA00048","Apéritifs alcoolisés",0.96,2.1,1.51,{"$f":"VLOOKUP(W94,[2]Feuil1!$A$1:$G$65536,7,0)","v":0.56999999999999995}]
[null,null,null,null,null,null,null,null,null,null,null,null,null,null,null,null,null,null,null,null,null,null,"FA00002","Paté,rillet,sciss,foie gras",1.05,4.09,0.39,{"$f":"VLOOKUP(W95,[2]Feuil1!$A$1:$G$65536,7,0)","v":-0.35}]
[null,null,null,null,null,null,null,null,null,null,null,null,null,null,null,null,null,null,null,null,null,null,"FA00044","Vin (Table et Pays)",1.05,3.53,2.4500000000000002,{"$f":"VLOOKUP(W96,[2]Feuil1!$A$1:$G$65536,7,0)","v":-0.4}]
[null,null,null,null,null,null,null,null,null,null,null,null,null,null,null,null,null,null,null,null,null,null,"FA00043","Cidre, cider",1.08,4.37,0.06,{"$f":"VLOOKUP(W97,[2]Feuil1!$A$1:$G$65536,7,0)","v":-0.34}]
[null,null,null,null,null,null,null,null,null,null,null,null,null,null,null,null,null,null,null,null,null,null,"FA00046","Digestif,liqueur,eau de vie",1.18,2.5299999999999998,-0.8,{"$f":"VLOOKUP(W98,[2]Feuil1!$A$1:$G$65536,7,0)","v":0.69}]
[null,null,null,null,null,null,null,null,null,null,null,null,null,null,null,null,null,null,null,null,null,null,"FA00098","Traitements, engrais plant",1.22,2.41,9.5,{"$f":"VLOOKUP(W99,[2]Feuil1!$A$1:$G$65536,7,0)","v":0.68}]
[null,null,null,null,null,null,null,null,null,null,null,null,null,null,null,null,null,null,null,null,null,null,"FA00018","Fruits secs, pruneaux",2.5299999999999998,2.77,8,{"$f":"VLOOKUP(W100,[2]Feuil1!$A$1:$G$65536,7,0)","v":1.94}]

{"sheet":"Familles HD","index":6,"n_rows":93,"n_cols":30,"rows_kept":93,"cut":false,"hidden":false,"merged":[[10,1,10,3],[10,10,10,12]]}
["Observatoire des prix et des marges",null,null,null,null,null,null,null,null,null,null,null,null,null,null,null,null,null,null,null,null,null,null,null,null,null,"grprd","Fam/ray","Exhaustif","MP Hard-Discount"]
[null,null,null,null,null,null,null,null,null,null,null,null,null,null,null,null,null,null,null,null,null,null,null,null,null,null,"FA00061","Mouchoirs papier, lingettes",-16.36,-17.043820598006647]
["Produits de grande consommation – Grande distribution",null,null,null,null,null,null,null,null,null,null,null,null,null,null,null,null,null,null,null,null,null,"EXHAUSTIF","Marques Propres",null,null,"FA00051","Déodorant,parfum,edt adu+bb",-13.89,-23.034858096828046]
[null,null,null,null,null,null,null,null,null,null,null,null,null,null,null,null,null,null,null,null,null,"Cidre, cider",2.89,13.483333333333333,null,null,"FA00016","Aliments infantiles",-12.37,-11.27217857142857]
[null,null,null,null,null,null,null,null,null,null,null,null,null,null,null,null,null,null,null,null,null,"Vin (Table et Pays)",1.17,-0.5886301369863014,null,null,"FA00060","Coton",-12.33,-14.165747126436781]
[null,null,null,null,null,null,null,null,null,null,null,null,null,null,null,null,null,null,null,null,null,"Sirop,concent,poudre boiss",0.36,1.1649779735682819,null,null,"FA00096","LITIERES POUR ANIMAUX",-11.51,-11.927639751552796]
[null,null,null,null,null,null,null,null,null,null,null,null,null,null,null,null,null,null,null,null,null,"Huile moteur",-0.08,-0.08,null,null,"FA00077","Oeufs",-11.43,-12.088565022421523]
[null,null,null,null,null,null,null,null,null,null,null,null,null,null,null,null,null,null,null,null,null,"Fruits au sirop, au jus",-0.38,-0.44797101449275362,null,null,"FA00056","Produits capillaires",-10.54,-12.038178137651821]
[null,null,null,null,null,null,null,null,null,null,null,null,null,null,null,null,null,null,null,null,null,"Désodorisants d'intérieur",-1.19,-2.7259022556390975,null,null,"FA00052","Soins corps, visage adu+bb",-10.34,-20.330615384615385]
[null,null,null,null,null,null,null,null,null,null,null,null,null,null,null,null,null,null,null,null,null,"Maquillage",-1.48,-20.82,null,null,"FA00062","Papier hygiénique",-9.99,-10.746060606060606]
[null,null,null,null,null,"EXHAUSTIF",null,"Marques Propres",null,null,null,null,null,null,"EXHAUSTIF",null,"Marques Propres",null,null,null,null,"Légumes vinaig, huile, saum",-1.55,-0.69845854922279793,null,null,"FA00015","Aliments chiens et chats",-9.17,-8.8865228826933205]
[null,{"$f":"+V4","v":"Cidre, cider"},null,null,null,{"$f":"+W4","v":2.89},null,{"$f":"+X4","v":13.483333333333333},null,null,{"$f":"+V20","v":"Mouchoirs papier, lingettes"},null,null,null,{"$f":"+W20","v":-16.36},null,{"$f":"+X20","v":-17.043820598006647},null,null,null,null,"Panification sèche",-1.6,-1.3864587973273941,null,null,"FA00320","Changes complets, couches,culottes absorbantes bebes",-9.0399999999999991,-9.2412499999999991]
[null,"Vin (Table et Pays)",null,null,null,1.17,null,-0.5886301369863014,null,null,"Déodorant,parfum,edt adu+bb",null,null,null,-13.89,null,-23.034858096828046,null,null,null,null,"FRUITS MER, POISSON NAT, PANES, GRENOUILLE ESCARGOT",-1.61,-2.7039440203562339,null,null,"FA00066","Eponges, tampons A récurer",-8.85,-7.4832492113564673]
[null,"Sirop,concent,poudre boiss",null,null,null,0.36,null,1.1649779735682819,null,null,"Aliments infantiles",null,null,null,-12.37,null,-11.27217857142857,null,null,null,null,null,null,null,null,null,"FA00070","Cirage, entret,teintu cuir",-8.76,-10.68]
[null,"Huile moteur",null,null,null,-0.08,null,-0.08,null,null,"Coton",null,null,null,-12.33,null,-14.165747126436781,null,null,null,null,null,null,null,null,null,"FA00024","Lait poudre,concentré adult",-8.5399999999999991,-10.736353591160221]
[null,"Fruits au sirop, au jus",null,null,null,-0.38,null,-0.44797101449275362,null,null,"LITIERES POUR ANIMAUX",null,null,null,-11.51,null,-11.927639751552796,null,null,null,null,null,null,null,null,null,"FA00063","Essuie tout",-8.5299999999999994,-8.7930569948186523]
[null,"Désodorisants d'intérieur",null,null,null,-1.19,null,-2.7259022556390975,null,null,"Oeufs",null,null,null,-11.43,null,-12.088565022421523,null,null,null,null,null,null,null,null,null,"FA00088","Panification industr fraIc",-8.25,-8.0151851851851852]
[null,"Maquillage",null,null,null,-1.48,null,-20.82,null,null,"Produits capillaires",null,null,null,-10.54,null,-12.038178137651821,null,null,null,null,null,null,null,null,null,"FA00042","Bière, boisson base bière",-8.19,-12.895742574257426]
[null,"Légumes vinaig, huile, saum",null,null,null,-1.55,null,-0.69845854922279793,null,null,"Soins corps, visage adu+bb",null,null,null,-10.34,null,-20.330615384615385,null,null,null,null,null,"EXHAUSTIF","Marques Propres",null,null,"FA00030","Café torréfié",-8.15,-9.4672581934452431]
[null,"Panification sèche",null,null,null,-1.6,null,-1.3864587973273941,null,null,"Papier hygiénique",null,null,null,-9.99,null,-10.746060606060606,null,null,null,null,"Mouchoirs papier, lingettes",-16.36,-17.043820598006647,null,null,"FA00007","Pates alimentaires",-7.97,-7.5207619047619056]
[null,"FRUITS MER, POISSON NAT, PANES, GRENOUILLE ESCARGOT",null,null,null,-1.61,null,-2.7039440203562339,null,null,"Aliments chiens et chats",null,null,null,-9.17,null,-8.8865228826933205,null,null,null,null,"Déodorant,parfum,edt adu+bb",-13.89,-23.034858096828046,null,null,"FA00038","Eaux",-7.89,-5.9626604068857585]
[null,null,null,null,null,null,null,null,null,null,null,null,null,null,null,null,null,null,null,null,null,"Aliments infantiles",-12.37,-11.27217857142857,null,null,"FA00017","Produits diététiques",-7.73,-10.78]
[null,"Marques Propres : marques MdD \"Premium\", \"Cœur de Gamme\" et \"Premiers Prix\"",null,null,null,null,null,null,null,null,"Marques Propres : marques MdD \"Premium\", \"Cœur de Gamme\" et \"Premiers Prix\"",null,null,null,null,null,null,null,null,null,null,"Coton",-12.33,-14.165747126436781,null,null,"FA00072","Assouplissant, entret linge",-7.59,-7.9501594896331742]
[null,null,null,null,null,null,null,null,null,null,null,null,null,null,null,null,null,null,null,null,null,"LITIERES POUR ANIMAUX",-11.51,-11.927639751552796,null,null,"FA00041","Jus, nectar fruit,legume",-7.54,-7.6277946902654872]
[null,null,null,null,null,null,null,null,null,null,null,null,null,null,null,null,null,null,null,null,null,"Oeufs",-11.43,-12.088565022421523,null,null,"FA00055","Hygiène dentaire",-7.44,-7.622945736434108]
[null,null,null,null,null,null,null,null,null,null,null,null,null,null,null,null,null,null,null,null,null,"Produits capillaires",-10.54,-12.038178137651821,null,null,"FA00028","Thés et infusions",-7.19,-5.0664235294117645]
[null,null,null,null,null,null,null,null,null,null,null,null,null,null,null,null,null,null,null,null,null,"Soins corps, visage adu+bb",-10.34,-20.330615384615385,null,null,"FA00058","Hygiène fèminine",-6.89,-6.7458888888888904]
[null,null,null,null,null,null,null,null,null,null,null,null,null,null,null,null,null,null,null,null,null,"Papier hygiénique",-9.99,-10.746060606060606,null,null,"FA00026","Céréales",-6.72,-6.7477678571428568]
[null,null,null,null,null,null,null,null,null,null,null,null,null,null,null,null,null,null,null,null,null,"Aliments chiens et chats",-9.17,-8.8865228826933205,null,null,"FA00035","Confiserie de chocolat",-6.72,-8.93]
[null,null,null,null,null,null,null,null,null,null,null,null,null,null,null,null,null,null,null,null,null,null,null,null,null,null,"FA00004","Légumes en conserve",-6.47,-7.1792565947242206]
[null,null,null,null,null,null,null,null,null,null,null,null,null,null,null,null,null,null,null,null,null,null,null,null,null,null,"FA00050","Rasage, aprés rasage",-6.43,-4.6518798955613585]
[null,null,null,null,null,null,null,null,null,null,null,null,null,null,null,null,null,null,null,null,null,null,null,null,null,null,"FA00047","Whisky, bourbon",-6.3,-3.8935114503816792]
[null,null,null,null,null,null,null,null,null,null,null,null,null,null,null,null,null,null,null,null,null,null,null,null,null,null,"FA00054","Savon, bain, douche adu+bb",-6.03,-4.6525784753363224]
[null,null,null,null,null,null,null,null,null,null,null,null,null,null,null,null,null,null,null,null,null,null,null,null,null,null,"FA00029","Chicorée,chic+caf,cafe solu",-6.02,-6.4389655172413791]
[null,null,null,null,null,null,null,null,null,null,null,null,null,null,null,null,null,null,null,null,null,null,null,null,null,null,"FA00065","Nettoyants ménager, débouch",-5.8,-4.7787135278514583]
[null,null,null,null,null,null,null,null,null,null,null,null,null,null,null,null,null,null,null,null,null,null,null,null,null,null,"FA00064","Prod vaisselle main,machine",-5.75,-5.7832740213523133]
[null,null,null,null,null,null,null,null,null,null,null,null,null,null,null,null,null,null,null,null,null,null,null,null,null,null,"FA00067","Emballage ménag,filtre café",-5.75,-5.5963190823774767]
[null,null,null,null,null,null,null,null,null,null,null,null,null,null,null,null,null,null,null,null,null,null,null,null,null,null,"FA00027","Pate A tartiner",-5.74,-5.3477697841726624]
[null,null,null,null,null,null,null,null,null,null,null,null,null,null,null,null,null,null,null,null,null,null,null,null,null,null,"FA00080","Plats cuisinés tt prêt surg",-5.69,-4.8222542266750157]
[null,null,null,null,null,null,null,null,null,null,null,null,null,null,null,null,null,null,null,null,null,null,null,null,null,null,"FA00078","Fromages",-5.38,-6.3487239944521487]
[null,null,null,null,null,null,null,null,null,null,null,null,null,null,null,null,null,null,null,null,null,null,null,null,null,null,"FA00013","Sauces, prép condimentaires",-5.37,-5.5392424242424241]
[null,null,null,null,null,null,null,null,null,null,null,null,null,null,null,null,null,null,null,null,null,null,null,null,null,null,"FA00032","Miel, confiture, compote",-5.31,-5.0229025844930417]
[null,null,null,null,null,null,null,null,null,null,null,null,null,null,null,null,null,null,null,null,null,null,null,null,null,null,"FA00022","Produits apéritifs, chips",-5.28,-5.8407420055883259]
[null,null,null,null,null,null,null,null,null,null,null,null,null,null,null,null,null,null,null,null,null,null,null,null,null,null,"FA00087","Traiteur libre service",-5.18,-5.5558513189448444]
[null,null,null,null,null,null,null,null,null,null,null,null,null,null,null,null,null,null,null,null,null,null,null,null,null,null,"FA00003","Conserves de poissons",-5.14,-5.5356990521327027]
[null,null,null,null,null,null,null,null,null,null,null,null,null,null,null,null,null,null,null,null,null,null,null,null,null,null,"FA00036","Confiserie de sucre",-5.05,-6.9793701344656762]
[null,null,null,null,null,null,null,null,null,null,null,null,null,null,null,null,null,null,null,null,null,null,null,null,null,null,"FA00037","Chewing gum",-5.03,-1.51]
[null,null,null,null,null,null,null,null,null,null,null,null,null,null,null,null,null,null,null,null,null,null,null,null,null,null,"FA00082","Légumes surgelés",-5.01,-5.0511136260751464]
[null,null,null,null,null,null,null,null,null,null,null,null,null,null,null,null,null,null,null,null,null,null,null,null,null,null,"FA00073","Charcuterie libre service",-4.8600000000000003,-5.3195530858358948]
[null,null,null,null,null,null,null,null,null,null,null,null,null,null,null,null,null,null,null,null,null,null,null,null,null,null,"FA00075","Lait",-4.74,-5.0985234899328864]
[null,null,null,null,null,null,null,null,null,null,null,null,null,null,null,null,null,null,null,null,null,null,null,null,null,null,"FA00009","Potages,bouill,aide culinai",-4.66,-3.2009638554216866]
[null,null,null,null,null,null,null,null,null,null,null,null,null,null,null,null,null,null,null,null,null,null,null,null,null,null,"FA00018","Fruits secs, pruneaux",-4.58,-6.4534581105169346]
[null,null,null,null,null,null,null,null,null,null,null,null,null,null,null,null,null,null,null,null,null,null,null,null,null,null,"FA00074","Yaourt,dessert lac,froma bl",-4.55,-4.8129459849334824]
[null,null,null,null,null,null,null,null,null,null,null,null,null,null,null,null,null,null,null,null,null,null,null,null,null,null,"FA00020","Biscuits sucrés",-4.51,-4.1474144337962064]
[null,null,null,null,null,null,null,null,null,null,null,null,null,null,null,null,null,null,null,null,null,null,null,null,null,null,"FA00006","Riz",-4.2699999999999996,-5.2078461538461536]
[null,null,null,null,null,null,null,null,null,null,null,null,null,null,null,null,null,null,null,null,null,null,null,null,null,null,"FA00010","Huile",-4.2300000000000004,-4.860314371257485]
[null,null,null,null,null,null,null,null,null,null,null,null,null,null,null,null,null,null,null,null,null,null,null,null,null,null,"FA00076","Beurre,margarine,creme frai",-4.05,-4.578233657858136]
[null,null,null,null,null,null,null,null,null,null,null,null,null,null,null,null,null,null,null,null,null,null,null,null,null,null,"FA00021","Patisserie industrielle",-4.01,-4.0435543562066307]
[null,null,null,null,null,null,null,null,null,null,null,null,null,null,null,null,null,null,null,null,null,null,null,null,null,null,"FA00079","Entrée,pizza,fast food surg",-3.85,-4.0078966565349541]
[null,null,null,null,null,null,null,null,null,null,null,null,null,null,null,null,null,null,null,null,null,null,null,null,null,null,"FA00040","Boisson rafraich ss alcool",-3.83,-5.5033232016210736]
[null,null,null,null,null,null,null,null,null,null,null,null,null,null,null,null,null,null,null,null,null,null,null,null,null,null,"FA00008","Farines, farineux, semoules",-3.81,-3.1915789473684208]
[null,null,null,null,null,null,null,null,null,null,null,null,null,null,null,null,null,null,null,null,null,null,null,null,null,null,"FA00019","Aide patisserie, desserts",-3.75,-4.2568649885583527]
[null,null,null,null,null,null,null,null,null,null,null,null,null,null,null,null,null,null,null,null,null,null,null,null,null,null,"FA00048","Apéritifs alcoolisés",-3.66,-4.4622238163558103]
[null,null,null,null,null,null,null,null,null,null,null,null,null,null,null,null,null,null,null,null,null,null,null,null,null,null,"FA00005","Légumes secs et deshydratés",-3.58,-5.0599999999999996]
[null,null,null,null,null,null,null,null,null,null,null,null,null,null,null,null,null,null,null,null,null,null,null,null,null,null,"FA00069","Insecticides",-3.43,-6.3679069767441874]
[null,null,null,null,null,null,null,null,null,null,null,null,null,null,null,null,null,null,null,null,null,null,null,null,null,null,"FA00084","Surgelés sucrés",-3.43,-2.9712393320964749]
[null,null,null,null,null,null,null,null,null,null,null,null,null,null,null,null,null,null,null,null,null,null,null,null,null,null,"FA00091","GANTS DE MENAGE JETABLES",-3.32,-3.74]
[null,null,null,null,null,null,null,null,null,null,null,null,null,null,null,null,null,null,null,null,null,null,null,null,null,null,"FA00034","Chocolat en tablette",-3.26,-4.73600537995965]
[null,null,null,null,null,null,null,null,null,null,null,null,null,null,null,null,null,null,null,null,null,null,null,null,null,null,"FA00071","Lessives, savons de ménage",-3.25,-2.9975126262626262]
[null,null,null,null,null,null,null,null,null,null,null,null,null,null,null,null,null,null,null,null,null,null,null,null,null,null,"FA00031","Sucres et édulcorants",-3.12,-3.1013737373737369]
[null,null,null,null,null,null,null,null,null,null,null,null,null,null,null,null,null,null,null,null,null,null,null,null,null,null,"FA00045","Champagne, mousseux",-3.01,4.743315508021393E-2]
[null,null,null,null,null,null,null,null,null,null,null,null,null,null,null,null,null,null,null,null,null,null,null,null,null,null,"FA00049","Apéritifs sans alcool",-2.99,-5.7344186046511627]
[null,null,null,null,null,null,null,null,null,null,null,null,null,null,null,null,null,null,null,null,null,null,null,null,null,null,"FA00321","Protections incontinence adultes",-2.95,{"$error":"#DIV/0!"}]
[null,null,null,null,null,null,null,null,null,null,null,null,null,null,null,null,null,null,null,null,null,null,null,null,null,null,"FA00057","Parapharmacie",-2.88,-2.46]
[null,null,null,null,null,null,null,null,null,null,null,null,null,null,null,null,null,null,null,null,null,null,null,null,null,null,"FA00086","Pates fraIches",-2.86,1.5202077922077921]
[null,null,null,null,null,null,null,null,null,null,null,null,null,null,null,null,null,null,null,null,null,null,null,null,null,null,"FA00011","Vinaigre",-2.83,-2.2314615384615384]
[null,null,null,null,null,null,null,null,null,null,null,null,null,null,null,null,null,null,null,null,null,null,null,null,null,null,"FA00085","Saurisserie",-2.73,-2.8139849624060154]
[null,null,null,null,null,null,null,null,null,null,null,null,null,null,null,null,null,null,null,null,null,null,null,null,null,null,"FA00001","Plats cuisinés",-2.65,-3.142594262295082]
[null,null,null,null,null,null,null,null,null,null,null,null,null,null,null,null,null,null,null,null,null,null,null,null,null,null,"FA00012","Sel, poivre, épices, herbes",-2.44,-2.032260596546311]
[null,null,null,null,null,null,null,null,null,null,null,null,null,null,null,null,null,null,null,null,null,null,null,null,null,null,"FA00083","Viande,volaill,charcut surg",-2.23,-3.0934513274336286]
[null,null,null,null,null,null,null,null,null,null,null,null,null,null,null,null,null,null,null,null,null,null,null,null,null,null,"FA00025","Poudres petits déjeuners",-1.97,-2.3498701298701299]
[null,null,null,null,null,null,null,null,null,null,null,null,null,null,null,null,null,null,null,null,null,null,null,null,null,null,"FA00002","Paté,rillet,sciss,foie gras",-1.76,-2.2775362318840577]
[null,null,null,null,null,null,null,null,null,null,null,null,null,null,null,null,null,null,null,null,null,null,null,null,null,null,"FA00046","Digestif,liqueur,eau de vie",-1.76,-3.2628571428571429]
[null,null,null,null,null,null,null,null,null,null,null,null,null,null,null,null,null,null,null,null,null,null,null,null,null,null,"FA00081","FRUITS MER, POISSON NAT, PANES, GRENOUILLE ESCARGOT",-1.61,-2.7039440203562339]
[null,null,null,null,null,null,null,null,null,null,null,null,null,null,null,null,null,null,null,null,null,null,null,null,null,null,"FA00023","Panification sèche",-1.6,-1.3864587973273941]
[null,null,null,null,null,null,null,null,null,null,null,null,null,null,null,null,null,null,null,null,null,null,null,null,null,null,"FA00014","Légumes vinaig, huile, saum",-1.55,-0.69845854922279793]
[null,null,null,null,null,null,null,null,null,null,null,null,null,null,null,null,null,null,null,null,null,null,null,null,null,null,"FA00053","Maquillage",-1.48,-20.82]
[null,null,null,null,null,null,null,null,null,null,null,null,null,null,null,null,null,null,null,null,null,null,null,null,null,null,"FA00068","Désodorisants d'intérieur",-1.19,-2.7259022556390975]
[null,null,null,null,null,null,null,null,null,null,null,null,null,null,null,null,null,null,null,null,null,null,null,null,null,null,"FA00033","Fruits au sirop, au jus",-0.38,-0.44797101449275362]
[null,null,null,null,null,null,null,null,null,null,null,null,null,null,null,null,null,null,null,null,null,null,null,null,null,null,"FA00097","Huile moteur",-0.08,-0.08]
[null,null,null,null,null,null,null,null,null,null,null,null,null,null,null,null,null,null,null,null,null,null,null,null,null,null,"FA00039","Sirop,concent,poudre boiss",0.36,1.1649779735682819]
[null,null,null,null,null,null,null,null,null,null,null,null,null,null,null,null,null,null,null,null,null,null,null,null,null,null,"FA00044","Vin (Table et Pays)",1.17,-0.5886301369863014]
[null,null,null,null,null,null,null,null,null,null,null,null,null,null,null,null,null,null,null,null,null,null,null,null,null,null,"FA00043","Cidre, cider",2.89,13.483333333333333]

{"sheet":"Régions","index":7,"n_rows":33,"n_cols":7,"rows_kept":33,"cut":false,"hidden":false,"merged":[[32,3,32,5],[25,3,25,5],[26,3,26,5],[27,3,27,5],[28,3,28,5],[31,3,31,5],[29,3,29,5],[30,3,30,5],[11,3,11,5],[12,3,12,5],[19,3,19,5],[16,3,16,5],[17,3,17,5],[18,3,18,5],[24,3,24,5],[23,3,23,5],[13,3,13,5],[14,3,14,5],[15,3,15,5],[22,3,22,5],[21,3,21,5],[20,3,20,5]]}
["Observatoire des prix et des marges"]
[]
["Produits de grande consommation – Grande distribution"]
[]
[]
[]
[]
[]
[]
[]
[]
["A0",null,null,"Alsace",null,null,-1.96]
["A1",null,null,"Aquitaine",null,null,-1.83]
["A2",null,null,"Auvergne",null,null,-2.14]
["A3",null,null,"Basse-Normandie",null,null,-1.52]
["A4",null,null,"Bourgogne",null,null,-2.37]
["A5",null,null,"Bretagne",null,null,-1.95]
["A6",null,null,"Centre",null,null,-1.89]
["A7",null,null,"Champagne-Ardenne",null,null,-2.09]
["CC",null,null,"Corse",null,null,-1.59]
["A9",null,null,"Franche-Comté",null,null,-3.33]
["B0",null,null,"Haute-Normandie",null,null,-2.08]
["B1",null,null,"Île-de-France",null,null,-1.97]
["B2",null,null,"Languedoc-Roussillon",null,null,-2.56]
["B3",null,null,"Limousin",null,null,-2.39]
["B4",null,null,"Lorraine",null,null,-2.09]
["B5",null,null,"Midi-Pyrénées",null,null,-2.42]
["B6",null,null,"Nord-Pas-de-Calais",null,null,-2.35]
["B7",null,null,"Pays de la Loire",null,null,-2.15]
["B8",null,null,"Picardie",null,null,-2.2799999999999998]
["B9",null,null,"Poitou-Charentes",null,null,-2]
["C0",null,null,"Provence-Alpes-Côte d'Azur",null,null,-2.35]
[null,null,null,"Rhône-Alpes",null,null,-2.14]